{"text_format":"1","workbook":"xlsx","n_sheets":9,"sheets":["2. Erläuterung","2. Musterraum- und Fensterbuch","2. Stundenberechnung UHR","2. Einteilung Mitarbeiter UHR","2. Stundenberechnung Sonderr. ","2. Einteilung MA Grundreinigung","2. Stundenberechnung Fenster","2. Einteilung MA Fensterr.","Summenblatt"],"not_rendered":{"charts":0,"images":0,"macros":1,"external_links":3,"defined_names":182,"comments":0,"pivot_tables":3},"unopened":[],"bounds":{"document_bytes":16777216,"sheet_cells":100000,"rows_first":2000,"rows_last":500,"rows_between":2000,"halvings":0,"cell_chars":16384,"cell_head_chars":4096},"cells_cut":0,"cells_raw":0,"read":"whole","date_system":"1900"}

{"sheet":"2. Erläuterung","index":0,"n_rows":21,"n_cols":2,"rows_kept":21,"cut":false,"hidden":false,"merged":[[20,0,20,6],[14,1,14,6],[15,1,15,6],[16,1,16,6],[17,1,17,6],[18,1,18,6],[13,1,13,6],[0,0,0,6],[2,0,2,6],[3,0,3,6],[4,0,4,6],[5,0,5,6],[7,0,7,6],[8,0,8,6],[9,0,9,6],[10,1,10,6],[11,1,11,6],[12,1,12,6]]}
["Stundenberechnungstool gem. ÖNORM D-2050"]
[]
["Dieses Toll soll allen Mitgliedsbetrieben, aber auch Auftraggebern und anderen die Möglichkeit geben den, für Leistungen gemäß ÖNORM D-2050 benötigten, Zeitaufwand zu errechnen. "]
[]
["Um eine vernünftige Berechnungsbasis zu erhalten, werden vom jeweiligen Objekt folgende Daten benötigt:"]
["1. Gebäudeplan mit Flächendaten und Bodenbelägen"]
["oder"]
["2. Raumliste mit Fläche und Bodenbelag"]
["In der Zelle F10 wird mittels Teilergebnis immer die gefilterte Gesamtsumme angezeigt. Wenn die Gesamtfläche angezeigt werden soll, müssen immer die Filter gelöscht werden. --> \"Daten\", Befehl \"Filter löschen\""]
["Folgende Eingaben sind vorzunehmen"]
["Objekt / Objektteil","Hier kann der Objektname / - teil eingegeben werden"]
["Geschoß","Hier ist das Geschoß bzw. die Ebene einzutragen um mehr Übersich zu haben"]
["Raum Nr.","Hier kann die Raumnummer eingegeben werden"]
["Raumwidmung\naus den Plänen","Hier ist die Raumwidmung gemäß Plan einzugeben"]
["Flächendefinition","Hier muss der Raum gem. Einteilung nach ÖNORM D-2050 mittels Dropdown-Menü zugeordnet werden"]
["Raum-\nflächen\nin m2","Hier ist die Fläche in m² anzugeben (Achtung keine Punkte, etc. eingeben) Bei Kommazahlen unbedingt ein Kommazeichen / einen Beistrich ( , ) verwenden!!!"]
["Bodenbelag aus Plan","Hier kann der Bodenbelag aus dem Plan übernommen werden."]
["Bodenbelagsart","Hier muss der Bodenbelag gem. Einteilung nach ÖNORM D-2050 mittels Dropdown-Menü zugeordnet werden"]
["Anmerkungen","Hier können noch Anmerkungen getätigt werden."]
[]
["Alle, für die Berechnung notwendigen Informationen werden automatisch in die Tabellenblätter \"Stundenberechnung Unterhaltsreinigung\" und \"Stundenberechnung Sonderreinigung\" übertragen."]

{"sheet":"2. Musterraum- und Fensterbuch","index":1,"n_rows":993,"n_cols":29,"rows_kept":993,"cut":false,"hidden":false,"merged":[[8,7,9,7],[8,0,9,4],[7,9,7,18],[7,0,7,8]]}
[null,null,null,null,null,null,null,null,null,null,null,null,null,null,null,null,null,null,null,"UH-Kategorien","GR-Kategorien",null,"Fensterarten","Fensterarten",null,"nur außen",null,"beidseitig","Auswahl"]
[null,null,null,null,null,null,null,null,null,null,null,null,null,null,null,null,null,null,null,"1 - Büros, Besprechungszimmer, Klassenzimmer, Unterrichtsräume/Sonderunterrichtsräume und EDV-Räume mit festen Gestühl/Stationsstützpunkt","PVC",null,"Thermofenster","Thermofenster","1-seitig",1,"gesamt",2,"1-seitig"]
[null,null,null,null,null,null,null,null,null,null,null,null,null,null,null,null,null,null,null,"2 - Toiletten, Duschen, Stationsbad","Linoleum",null,"Kastenfenster","Kastenfenster","1-seitig",1,"gesamt",4,"gesamt"]
[null,null,null,null,null,null,null,null,null,null,null,null,null,null,null,null,null,null,null,"3 - Aufzüge","Kautschuk",null,"Verbundfenster","Verbundfenster","1-seitig",1,"gesamt",4]
[null,null,null,null,null,null,null,null,null,null,null,null,null,null,null,null,null,null,null,"4 - Teeküchen","Steinboden",null,"Fixverglasung","Fixverglasung","1-seitig",1,"gesamt",2]
[null,null,null,null,null,null,null,null,null,null,null,null,null,null,null,null,null,null,null,"5 - Eingangsbereiche, Fitness-, Werkstätten- und Produktionsbereiche","Steinboden kalkhältig",null,"Glasfassade","Glasfassade","1-seitig",1,"gesamt",2]
[null,null,null,null,null,null,null,null,null,null,null,null,null,null,null,null,null,null,null,"6 - Stiegenhäuser","Keramische Fliesen und Platten"]
["Raumbuch - Flächenstruktur",null,null,null,null,null,null,null,null,"Fensterdaten",null,null,null,null,null,null,null,null,null,"7 - Stiegenhäuser in Wohnhäusern inkl. Gänge","Parkett versiegelt"]
["Teilergebnis in Zelle F10 - es wird immer die gefilterte Gesamtsumme angezeigt!",null,null,null,null,"Gesamtsumme",null,null,null,null,"Anzahl der Fenster\nTeilergebnis",null,null,null,"Gesamtfläche einseitig\nTeilergebnis","Gesamtfläche alle Seiten\nTeilergebnis","Anzahl der Jalousien\nTeilergebnis","Gesamtfläche Jalousien\nTeilergebnis",null,"8 - Gehwegreinigung und Grünflächenreinigung in Außenanlagen","Parkett geölt/gewachst"]
[null,null,null,null,null,{"$f":"SUBTOTAL(9,F12:F504)","v":0},null,null,null,null,{"$f":"SUBTOTAL(9,K12:K913)","v":0},null,null,"Gesamtsumme m² Fenster",{"$f":"SUBTOTAL(9,O12:O913)","v":0},{"$f":"SUBTOTAL(9,P12:P913)","v":0},{"$f":"SUBTOTAL(9,Q12:Q913)","v":0},{"$f":"SUBTOTAL(9,R12:R913)","v":0},null,"9 - Keller, Archive, Lager","Laminat"]
["Objekt / Objektteil","Geschoß","Raum Nr.","Raumwidmung\naus den Plänen","Flächendefinition","Raum-\nflächen\nin m2","Bodenbelag aus Plan","Bodenbelagsart","Anmerkungen","Fenster-\nart\n(Achtung:dropdownliste)","Anzahl d.\nFenster bzw. fensterähnliche Fixverglasung (an der Außenwand)\neintragen","Breite in m\neintragen","Höhe in m\neintragen","Wie soll gereinigt werden?\n1-seitig nur außen/innen oder das gesamte Fenster?\nBitte auswählen!","Fläche Fenster inkl.\nStock  u.\nRahmen\nin m²\n(einseitig)","Summe  Fläche\nGlas, Stock  u.\nRahmen,\n(Formel)","Anzahl der Jalousien","Fläche Jalousien\nrechnet sich selbst","Anmerkungen zu den Fensterdaten","10 - Festsäle, Haustechnik-Bereiche","Teppich"]
[null,null,null,null,null,null,null,null,null,null,null,null,null,null,{"$f":"K12*L12*M12","v":0},{"$f":"IF(ISBLANK(J12),\" \",IF(N12=\"gesamt\",(O12*(VLOOKUP(J12,$X$1:$AB$6,5,))),(O12*VLOOKUP(J12,$X$1:$AB$6,3))))","v":" "},null,{"$f":"IF(Q12>0,Q12*O12,0)","v":0},null,"11 - Behandlungsbereiche/Ambulanzen, Untersuchungs- und Behandlungsräume, medinzinische/medizintechnische Arbeitsräume, Pflegearbeitsräume","Estrich/Asphaltböden"]
[null,null,null,null,null,null,null,null,null,null,null,null,null,null,{"$f":"K13*L13*M13","v":0},{"$f":"IF(ISBLANK(J13),\" \",IF(N13=\"gesamt\",(O13*(VLOOKUP(J13,$X$1:$AB$6,5,))),(O13*VLOOKUP(J13,$X$1:$AB$6,3))))","v":" "},null,{"$f":"IF(Q13>0,Q13*O13,0)","v":0},null,"12 - Patientenzimmer (Stationsbereich) ohne Nasszellen","Sonstige"]
[null,null,null,null,null,null,null,null,null,null,null,null,null,null,{"$f":"K14*L14*M14","v":0}," ",null,0,null,"13 - OP-Bereich"]
[null,null,null,null,null,null,null,null,null,null,null,null,null,null,0," ",null,0,null,"14 - Intensivbereich"]
[null,null,null,null,null,null,null,null,null,null,null,null,null,null,0," ",null,0,null,"15 - Labore/medizinische Laboratorien"]
[null,null,null,null,null,null,null,null,null,null,null,null,null,null,0," ",null,0,null,"16 - Wellnessbereiche"]
[null,null,null,null,null,null,null,null,null,null,null,null,null,null,0,{"$f":"IF(ISBLANK(J18),\" \",IF(N18=\"gesamt\",(O18*(VLOOKUP(J18,$X$2:$AB$6,5))),(O18*VLOOKUP(J18,$X$2:$AB$6,3))))","v":" "},null,0,null,"17 - Schwimmbad"]
[null,null,null,null,null,null,null,null,null,null,null,null,null,null,0," ",null,0,null,"18 - Großküchenbereiche/Küchen"]
[null,null,null,null,null,null,null,null,null,null,null,null,null,null,0," ",null,0,null,"19 - Gänge, Sport- und Mehrzweckbereiche"]
[null,null,null,null,null,null,null,null,null,null,null,null,null,null,0," ",null,0,null,"20 - Speiseräume, Gruppenräume, Kindergarten, Kantine, Aufenthaltsräume"]
[null,null,null,null,null,null,null,null,null,null,null,null,null,null,0," ",null,0,null,"21 - Garderoben Umkleide- und Mannschaftsräume"]
[null,null,null,null,null,null,null,null,null,null,null,null,null,null,0," ",null,0,null,"22 - Bibliotheken"]
[null,null,null,null,null,null,null,null,null,null,null,null,null,null,0," ",null,0,null,"23 - Hotelzimmer, Bewohnerzimmer, Appartementzimmer\nund Gästezimmer mit Nassräumen"]
[null,null,null,null,null,null,null,null,null,null,null,null,null,null,0," ",null,0,null,"24 - Verkehrsmittel Langstrecke (zB Flugzeug, Reisezug, Reisebus)"]
[null,null,null,null,null,null,null,null,null,null,null,null,null,null,0," ",null,0,null,"25 - Verkehrsmittel Kurzstrecke (zB U-Bahn, Straßenbahn, Linienbus)"]
[null,null,null,null,null,null,null,null,null,null,null,null,null,null,0," ",null,0,null,"26 - Verkaufsflächen"]
[null,null,null,null,null,null,null,null,null,null,null,null,null,null,0," ",null,0,null,"27 - Flughafen, Bahnhöfe, Einkaufszentren, oder sonstige automatengeeignete Bodenflächen"]
[null,null,null,null,null,null,null,null,null,null,null,null,null,null,{"$f":"K29*L29*M29","v":0}," ",null,{"$f":"IF(Q29>0,Q29*O29,0)","v":0},null,"28 - Sonstige Flächen 1"]
[null,null,null,null,null,null,null,null,null,null,null,null,null,null,0," ",null,0,null,"29 - Sonstige Flächen 2"]
[null,null,null,null,null,null,null,null,null,null,null,null,null,null,0," ",null,0,null,"30 - Sonstige Flächen 3"]
[null,null,null,null,null,null,null,null,null,null,null,null,null,null,{"$f":"K32*L32*M32","v":0}," ",null,{"$f":"IF(Q32>0,Q32*O32,0)","v":0},null,"31 - Sonstige Flächen 4"]
[null,null,null,null,null,null,null,null,null,null,null,null,null,null,0," ",null,0,null,"32 - Sonstige Flächen 5"]
[null,null,null,null,null,null,null,null,null,null,null,null,null,null,0," ",null,0]
[null,null,null,null,null,null,null,null,null,null,null,null,null,null,{"$f":"K35*L35*M35","v":0}," ",null,{"$f":"IF(Q35>0,Q35*O35,0)","v":0}]
[null,null,null,null,null,null,null,null,null,null,null,null,null,null,0," ",null,0]
[null,null,null,null,null,null,null,null,null,null,null,null,null,null,{"$f":"K37*L37*M37","v":0}," ",null,{"$f":"IF(Q37>0,Q37*O37,0)","v":0}]
[null,null,null,null,null,null,null,null,null,null,null,null,null,null,0," ",null,0]
[null,null,null,null,null,null,null,null,null,null,null,null,null,null,0," ",null,0]
[null,null,null,null,null,null,null,null,null,null,null,null,null,null,0," ",null,0]
[null,null,null,null,null,null,null,null,null,null,null,null,null,null,0," ",null,0]
[null,null,null,null,null,null,null,null,null,null,null,null,null,null,0," ",null,0]
[null,null,null,null,null,null,null,null,null,null,null,null,null,null,{"$f":"K43*L43*M43","v":0}," ",null,{"$f":"IF(Q43>0,Q43*O43,0)","v":0}]
[null,null,null,null,null,null,null,null,null,null,null,null,null,null,0," ",null,0]
[null,null,null,null,null,null,null,null,null,null,null,null,null,null,0," ",null,0]
[null,null,null,null,null,null,null,null,null,null,null,null,null,null,0," ",null,0]
[null,null,null,null,null,null,null,null,null,null,null,null,null,null,0," ",null,0]
[null,null,null,null,null,null,null,null,null,null,null,null,null,null,0," ",null,0]
[null,null,null,null,null,null,null,null,null,null,null,null,null,null,0," ",null,0]
[null,null,null,null,null,null,null,null,null,null,null,null,null,null,0,{"$f":"IF(ISBLANK(J50),\" \",IF(N50=\"gesamt\",(O50*(VLOOKUP(J50,$X$2:$AB$6,5))),(O50*VLOOKUP(J50,$X$2:$AB$6,3))))","v":" "},null,0]
[null,null,null,null,null,null,null,null,null,null,null,null,null,null,0," ",null,0]
[null,null,null,null,null,null,null,null,null,null,null,null,null,null,0," ",null,0]
[null,null,null,null,null,null,null,null,null,null,null,null,null,null,0," ",null,0]
[null,null,null,null,null,null,null,null,null,null,null,null,null,null,0," ",null,0]
[null,null,null,null,null,null,null,null,null,null,null,null,null,null,0," ",null,0]
[null,null,null,null,null,null,null,null,null,null,null,null,null,null,{"$f":"K56*L56*M56","v":0}," ",null,{"$f":"IF(Q56>0,Q56*O56,0)","v":0}]
[null,null,null,null,null,null,null,null,null,null,null,null,null,null,0," ",null,0]
[null,null,null,null,null,null,null,null,null,null,null,null,null,null,0," ",null,0]
[null,null,null,null,null,null,null,null,null,null,null,null,null,null,0," ",null,0]
[null,null,null,null,null,null,null,null,null,null,null,null,null,null,0," ",null,0]
[null,null,null,null,null,null,null,null,null,null,null,null,null,null,{"$f":"K61*L61*M61","v":0}," ",null,{"$f":"IF(Q61>0,Q61*O61,0)","v":0}]
[null,null,null,null,null,null,null,null,null,null,null,null,null,null,0," ",null,0]
[null,null,null,null,null,null,null,null,null,null,null,null,null,null,0," ",null,0]
[null,null,null,null,null,null,null,null,null,null,null,null,null,null,0," ",null,0]
[null,null,null,null,null,null,null,null,null,null,null,null,null,null,0," ",null,0]
[null,null,null,null,null,null,null,null,null,null,null,null,null,null,0," ",null,0]
[null,null,null,null,null,null,null,null,null,null,null,null,null,null,0," ",null,0]
[null,null,null,null,null,null,null,null,null,null,null,null,null,null,0," ",null,0]
[null,null,null,null,null,null,null,null,null,null,null,null,null,null,0," ",null,0]
[null,null,null,null,null,null,null,null,null,null,null,null,null,null,0," ",null,0]
[null,null,null,null,null,null,null,null,null,null,null,null,null,null,0," ",null,0]
[null,null,null,null,null,null,null,null,null,null,null,null,null,null,0," ",null,0]
[null,null,null,null,null,null,null,null,null,null,null,null,null,null,0," ",null,0]
[null,null,null,null,null,null,null,null,null,null,null,null,null,null,0," ",null,0]
[null,null,null,null,null,null,null,null,null,null,null,null,null,null,0," ",null,0]
[null,null,null,null,null,null,null,null,null,null,null,null,null,null,{"$f":"K76*L76*M76","v":0}," ",null,{"$f":"IF(Q76>0,Q76*O76,0)","v":0}]
[null,null,null,null,null,null,null,null,null,null,null,null,null,null,0," ",null,0]
[null,null,null,null,null,null,null,null,null,null,null,null,null,null,{"$f":"K78*L78*M78","v":0}," ",null,{"$f":"IF(Q78>0,Q78*O78,0)","v":0}]
[null,null,null,null,null,null,null,null,null,null,null,null,null,null,0," ",null,0]
[null,null,null,null,null,null,null,null,null,null,null,null,null,null,0," ",null,0]
[null,null,null,null,null,null,null,null,null,null,null,null,null,null,0," ",null,0]
[null,null,null,null,null,null,null,null,null,null,null,null,null,null,0,{"$f":"IF(ISBLANK(J82),\" \",IF(N82=\"gesamt\",(O82*(VLOOKUP(J82,$X$2:$AB$6,5))),(O82*VLOOKUP(J82,$X$2:$AB$6,3))))","v":" "},null,0]
[null,null,null,null,null,null,null,null,null,null,null,null,null,null,0," ",null,0]
[null,null,null,null,null,null,null,null,null,null,null,null,null,null,0," ",null,0]
[null,null,null,null,null,null,null,null,null,null,null,null,null,null,0," ",null,0]
[null,null,null,null,null,null,null,null,null,null,null,null,null,null,0," ",null,0]
[null,null,null,null,null,null,null,null,null,null,null,null,null,null,0," ",null,{"$f":"IF(Q87>0,Q87*O87,0)","v":0}]
[null,null,null,null,null,null,null,null,null,null,null,null,null,null,{"$f":"K88*L88*M88","v":0}," ",null,0]
[null,null,null,null,null,null,null,null,null,null,null,null,null,null,0," ",null,0]
[null,null,null,null,null,null,null,null,null,null,null,null,null,null,{"$f":"K90*L90*M90","v":0}," ",null,{"$f":"IF(Q90>0,Q90*O90,0)","v":0}]
[null,null,null,null,null,null,null,null,null,null,null,null,null,null,0," ",null,0]
[null,null,null,null,null,null,null,null,null,null,null,null,null,null,0," ",null,0]
[null,null,null,null,null,null,null,null,null,null,null,null,null,null,0," ",null,0]
[null,null,null,null,null,null,null,null,null,null,null,null,null,null,0," ",null,0]
[null,null,null,null,null,null,null,null,null,null,null,null,null,null,{"$f":"K95*L95*M95","v":0}," ",null,{"$f":"IF(Q95>0,Q95*O95,0)","v":0}]
[null,null,null,null,null,null,null,null,null,null,null,null,null,null,0," ",null,0]
[null,null,null,null,null,null,null,null,null,null,null,null,null,null,0," ",null,0]
[null,null,null,null,null,null,null,null,null,null,null,null,null,null,0," ",null,0]
[null,null,null,null,null,null,null,null,null,null,null,null,null,null,0,{"$f":"IF(ISBLANK(J99),\" \",IF(N99=\"gesamt\",(O99*(VLOOKUP(J99,$X$2:$AB$6,5))),(O99*VLOOKUP(J99,$X$2:$AB$6,3))))","v":" "},null,0]
[null,null,null,null,null,null,null,null,null,null,null,null,null,null,0," ",null,0]
[null,null,null,null,null,null,null,null,null,null,null,null,null,null,0," ",null,0]
[null,null,null,null,null,null,null,null,null,null,null,null,null,null,0," ",null,0]
[null,null,null,null,null,null,null,null,null,null,null,null,null,null,0," ",null,0]
[null,null,null,null,null,null,null,null,null,null,null,null,null,null,0," ",null,0]
[null,null,null,null,null,null,null,null,null,null,null,null,null,null,0," ",null,0]
[null,null,null,null,null,null,null,null,null,null,null,null,null,null,0," ",null,0]
[null,null,null,null,null,null,null,null,null,null,null,null,null,null,0," ",null,0]
[null,null,null,null,null,null,null,null,null,null,null,null,null,null,0," ",null,0]
[null,null,null,null,null,null,null,null,null,null,null,null,null,null,0," ",null,0]
[null,null,null,null,null,null,null,null,null,null,null,null,null,null,0," ",null,0]
[null,null,null,null,null,null,null,null,null,null,null,null,null,null,0," ",null,0]
[null,null,null,null,null,null,null,null,null,null,null,null,null,null,0," ",null,0]
[null,null,null,null,null,null,null,null,null,null,null,null,null,null,0," ",null,0]
[null,null,null,null,null,null,null,null,null,null,null,null,null,null,0," ",null,0]
[null,null,null,null,null,null,null,null,null,null,null,null,null,null,0," ",null,0]
[null,null,null,null,null,null,null,null,null,null,null,null,null,null,0," ",null,0]
[null,null,null,null,null,null,null,null,null,null,null,null,null,null,0," ",null,0]
[null,null,null,null,null,null,null,null,null,null,null,null,null,null,0," ",null,0]
[null,null,null,null,null,null,null,null,null,null,null,null,null,null,0," ",null,0]
[null,null,null,null,null,null,null,null,null,null,null,null,null,null,0," ",null,0]
[null,null,null,null,null,null,null,null,null,null,null,null,null,null,0," ",null,0]
[null,null,null,null,null,null,null,null,null,null,null,null,null,null,0," ",null,0]
[null,null,null,null,null,null,null,null,null,null,null,null,null,null,0," ",null,0]
[null,null,null,null,null,null,null,null,null,null,null,null,null,null,0," ",null,0]
[null,null,null,null,null,null,null,null,null,null,null,null,null,null,0," ",null,0]
[null,null,null,null,null,null,null,null,null,null,null,null,null,null,0," ",null,0]
[null,null,null,null,null,null,null,null,null,null,null,null,null,null,0," ",null,0]
[null,null,null,null,null,null,null,null,null,null,null,null,null,null,0," ",null,0]
[null,null,null,null,null,null,null,null,null,null,null,null,null,null,0," ",null,0]
[null,null,null,null,null,null,null,null,null,null,null,null,null,null,0," ",null,0]
[null,null,null,null,null,null,null,null,null,null,null,null,null,null,0," ",null,0]
[null,null,null,null,null,null,null,null,null,null,null,null,null,null,0," ",null,0]
[null,null,null,null,null,null,null,null,null,null,null,null,null,null,0," ",null,0]
[null,null,null,null,null,null,null,null,null,null,null,null,null,null,0," ",null,0]
[null,null,null,null,null,null,null,null,null,null,null,null,null,null,0," ",null,0]
[null,null,null,null,null,null,null,null,null,null,null,null,null,null,0," ",null,0]
[null,null,null,null,null,null,null,null,null,null,null,null,null,null,0," ",null,0]
[null,null,null,null,null,null,null,null,null,null,null,null,null,null,0," ",null,0]
[null,null,null,null,null,null,null,null,null,null,null,null,null,null,0," ",null,0]
[null,null,null,null,null,null,null,null,null,null,null,null,null,null,0," ",null,0]
[null,null,null,null,null,null,null,null,null,null,null,null,null,null,0," ",null,0]
[null,null,null,null,null,null,null,null,null,null,null,null,null,null,0," ",null,0]
[null,null,null,null,null,null,null,null,null,null,null,null,null,null,0," ",null,0]
[null,null,null,null,null,null,null,null,null,null,null,null,null,null,0," ",null,0]
[null,null,null,null,null,null,null,null,null,null,null,null,null,null,0," ",null,0]
[null,null,null,null,null,null,null,null,null,null,null,null,null,null,0," ",null,0]
[null,null,null,null,null,null,null,null,null,null,null,null,null,null,0," ",null,0]
[null,null,null,null,null,null,null,null,null,null,null,null,null,null,0," ",null,0]
[null,null,null,null,null,null,null,null,null,null,null,null,null,null,0," ",null,0]
[null,null,null,null,null,null,null,null,null,null,null,null,null,null,0," ",null,0]
[null,null,null,null,null,null,null,null,null,null,null,null,null,null,0," ",null,0]
[null,null,null,null,null,null,null,null,null,null,null,null,null,null,0," ",null,0]
[null,null,null,null,null,null,null,null,null,null,null,null,null,null,0," ",null,{"$f":"IF(Q153>0,Q153*O153,0)","v":0}]
[null,null,null,null,null,null,null,null,null,null,null,null,null,null,{"$f":"K154*L154*M154","v":0}," ",null,0]
[null,null,null,null,null,null,null,null,null,null,null,null,null,null,0," ",null,0]
[null,null,null,null,null,null,null,null,null,null,null,null,null,null,0," ",null,0]
[null,null,null,null,null,null,null,null,null,null,null,null,null,null,0," ",null,0]
[null,null,null,null,null,null,null,null,null,null,null,null,null,null,0," ",null,0]
[null,null,null,null,null,null,null,null,null,null,null,null,null,null,0," ",null,0]
[null,null,null,null,null,null,null,null,null,null,null,null,null,null,0," ",null,0]
[null,null,null,null,null,null,null,null,null,null,null,null,null,null,0," ",null,0]
[null,null,null,null,null,null,null,null,null,null,null,null,null,null,0,{"$f":"IF(ISBLANK(J162),\" \",IF(N162=\"gesamt\",(O162*(VLOOKUP(J162,$X$2:$AB$6,5))),(O162*VLOOKUP(J162,$X$2:$AB$6,3))))","v":" "},null,0]
[null,null,null,null,null,null,null,null,null,null,null,null,null,null,0," ",null,0]
[null,null,null,null,null,null,null,null,null,null,null,null,null,null,0," ",null,0]
[null,null,null,null,null,null,null,null,null,null,null,null,null,null,0," ",null,0]
[null,null,null,null,null,null,null,null,null,null,null,null,null,null,0," ",null,0]
[null,null,null,null,null,null,null,null,null,null,null,null,null,null,0," ",null,0]
[null,null,null,null,null,null,null,null,null,null,null,null,null,null,0," ",null,0]
[null,null,null,null,null,null,null,null,null,null,null,null,null,null,0," ",null,0]
[null,null,null,null,null,null,null,null,null,null,null,null,null,null,0," ",null,0]
[null,null,null,null,null,null,null,null,null,null,null,null,null,null,0," ",null,0]
[null,null,null,null,null,null,null,null,null,null,null,null,null,null,0," ",null,0]
[null,null,null,null,null,null,null,null,null,null,null,null,null,null,0," ",null,0]
[null,null,null,null,null,null,null,null,null,null,null,null,null,null,0," ",null,0]
[null,null,null,null,null,null,null,null,null,null,null,null,null,null,0," ",null,0]
[null,null,null,null,null,null,null,null,null,null,null,null,null,null,0," ",null,0]
[null,null,null,null,null,null,null,null,null,null,null,null,null,null,0," ",null,0]
[null,null,null,null,null,null,null,null,null,null,null,null,null,null,0," ",null,0]
[null,null,null,null,null,null,null,null,null,null,null,null,null,null,0," ",null,0]
[null,null,null,null,null,null,null,null,null,null,null,null,null,null,0," ",null,0]
[null,null,null,null,null,null,null,null,null,null,null,null,null,null,0," ",null,0]
[null,null,null,null,null,null,null,null,null,null,null,null,null,null,0," ",null,0]
[null,null,null,null,null,null,null,null,null,null,null,null,null,null,0," ",null,0]
[null,null,null,null,null,null,null,null,null,null,null,null,null,null,0," ",null,0]
[null,null,null,null,null,null,null,null,null,null,null,null,null,null,0," ",null,0]
[null,null,null,null,null,null,null,null,null,null,null,null,null,null,0," ",null,0]
[null,null,null,null,null,null,null,null,null,null,null,null,null,null,0," ",null,0]
[null,null,null,null,null,null,null,null,null,null,null,null,null,null,0," ",null,0]
[null,null,null,null,null,null,null,null,null,null,null,null,null,null,0," ",null,0]
[null,null,null,null,null,null,null,null,null,null,null,null,null,null,0," ",null,0]
[null,null,null,null,null,null,null,null,null,null,null,null,null,null,0," ",null,0]
[null,null,null,null,null,null,null,null,null,null,null,null,null,null,0," ",null,0]
[null,null,null,null,null,null,null,null,null,null,null,null,null,null,0," ",null,0]
[null,null,null,null,null,null,null,null,null,null,null,null,null,null,0," ",null,0]
[null,null,null,null,null,null,null,null,null,null,null,null,null,null,0," ",null,0]
[null,null,null,null,null,null,null,null,null,null,null,null,null,null,0," ",null,0]
[null,null,null,null,null,null,null,null,null,null,null,null,null,null,0," ",null,0]
[null,null,null,null,null,null,null,null,null,null,null,null,null,null,0," ",null,0]
[null,null,null,null,null,null,null,null,null,null,null,null,null,null,0," ",null,0]
[null,null,null,null,null,null,null,null,null,null,null,null,null,null,0," ",null,0]
[null,null,null,null,null,null,null,null,null,null,null,null,null,null,0," ",null,0]
[null,null,null,null,null,null,null,null,null,null,null,null,null,null,0," ",null,0]
[null,null,null,null,null,null,null,null,null,null,null,null,null,null,0," ",null,0]
[null,null,null,null,null,null,null,null,null,null,null,null,null,null,0," ",null,0]
[null,null,null,null,null,null,null,null,null,null,null,null,null,null,0," ",null,0]
[null,null,null,null,null,null,null,null,null,null,null,null,null,null,0," ",null,0]
[null,null,null,null,null,null,null,null,null,null,null,null,null,null,0," ",null,0]
[null,null,null,null,null,null,null,null,null,null,null,null,null,null,0," ",null,0]
[null,null,null,null,null,null,null,null,null,null,null,null,null,null,0," ",null,0]
[null,null,null,null,null,null,null,null,null,null,null,null,null,null,0," ",null,0]
[null,null,null,null,null,null,null,null,null,null,null,null,null,null,0," ",null,0]
[null,null,null,null,null,null,null,null,null,null,null,null,null,null,0," ",null,0]
[null,null,null,null,null,null,null,null,null,null,null,null,null,null,0," ",null,0]
[null,null,null,null,null,null,null,null,null,null,null,null,null,null,0," ",null,0]
[null,null,null,null,null,null,null,null,null,null,null,null,null,null,0," ",null,0]
[null,null,null,null,null,null,null,null,null,null,null,null,null,null,0," ",null,0]
[null,null,null,null,null,null,null,null,null,null,null,null,null,null,0," ",null,{"$f":"IF(Q217>0,Q217*O217,0)","v":0}]
[null,null,null,null,null,null,null,null,null,null,null,null,null,null,{"$f":"K218*L218*M218","v":0}," ",null,0]
[null,null,null,null,null,null,null,null,null,null,null,null,null,null,0," ",null,0]
[null,null,null,null,null,null,null,null,null,null,null,null,null,null,0," ",null,0]
[null,null,null,null,null,null,null,null,null,null,null,null,null,null,0," ",null,0]
[null,null,null,null,null,null,null,null,null,null,null,null,null,null,0," ",null,0]
[null,null,null,null,null,null,null,null,null,null,null,null,null,null,0," ",null,0]
[null,null,null,null,null,null,null,null,null,null,null,null,null,null,0," ",null,0]
[null,null,null,null,null,null,null,null,null,null,null,null,null,null,0," ",null,0]
[null,null,null,null,null,null,null,null,null,null,null,null,null,null,0,{"$f":"IF(ISBLANK(J226),\" \",IF(N226=\"gesamt\",(O226*(VLOOKUP(J226,$X$2:$AB$6,5))),(O226*VLOOKUP(J226,$X$2:$AB$6,3))))","v":" "},null,0]
[null,null,null,null,null,null,null,null,null,null,null,null,null,null,0," ",null,0]
[null,null,null,null,null,null,null,null,null,null,null,null,null,null,0," ",null,0]
[null,null,null,null,null,null,null,null,null,null,null,null,null,null,0," ",null,0]
[null,null,null,null,null,null,null,null,null,null,null,null,null,null,0," ",null,0]
[null,null,null,null,null,null,null,null,null,null,null,null,null,null,0," ",null,0]
[null,null,null,null,null,null,null,null,null,null,null,null,null,null,0," ",null,0]
[null,null,null,null,null,null,null,null,null,null,null,null,null,null,0," ",null,0]
[null,null,null,null,null,null,null,null,null,null,null,null,null,null,0," ",null,0]
[null,null,null,null,null,null,null,null,null,null,null,null,null,null,0," ",null,0]
[null,null,null,null,null,null,null,null,null,null,null,null,null,null,0," ",null,0]
[null,null,null,null,null,null,null,null,null,null,null,null,null,null,0," ",null,0]
[null,null,null,null,null,null,null,null,null,null,null,null,null,null,0," ",null,0]
[null,null,null,null,null,null,null,null,null,null,null,null,null,null,0," ",null,0]
[null,null,null,null,null,null,null,null,null,null,null,null,null,null,0," ",null,0]
[null,null,null,null,null,null,null,null,null,null,null,null,null,null,0," ",null,0]
[null,null,null,null,null,null,null,null,null,null,null,null,null,null,0," ",null,0]
[null,null,null,null,null,null,null,null,null,null,null,null,null,null,0," ",null,0]
[null,null,null,null,null,null,null,null,null,null,null,null,null,null,0," ",null,0]
[null,null,null,null,null,null,null,null,null,null,null,null,null,null,0," ",null,0]
[null,null,null,null,null,null,null,null,null,null,null,null,null,null,0," ",null,0]
[null,null,null,null,null,null,null,null,null,null,null,null,null,null,0," ",null,0]
[null,null,null,null,null,null,null,null,null,null,null,null,null,null,0," ",null,0]
[null,null,null,null,null,null,null,null,null,null,null,null,null,null,0," ",null,0]
[null,null,null,null,null,null,null,null,null,null,null,null,null,null,0," ",null,0]
[null,null,null,null,null,null,null,null,null,null,null,null,null,null,0," ",null,0]
[null,null,null,null,null,null,null,null,null,null,null,null,null,null,0," ",null,0]
[null,null,null,null,null,null,null,null,null,null,null,null,null,null,0," ",null,0]
[null,null,null,null,null,null,null,null,null,null,null,null,null,null,0," ",null,0]
[null,null,null,null,null,null,null,null,null,null,null,null,null,null,0," ",null,0]
[null,null,null,null,null,null,null,null,null,null,null,null,null,null,0," ",null,0]
[null,null,null,null,null,null,null,null,null,null,null,null,null,null,0," ",null,0]
[null,null,null,null,null,null,null,null,null,null,null,null,null,null,0," ",null,0]
[null,null,null,null,null,null,null,null,null,null,null,null,null,null,0," ",null,0]
[null,null,null,null,null,null,null,null,null,null,null,null,null,null,0," ",null,0]
[null,null,null,null,null,null,null,null,null,null,null,null,null,null,0," ",null,0]
[null,null,null,null,null,null,null,null,null,null,null,null,null,null,0," ",null,0]
[null,null,null,null,null,null,null,null,null,null,null,null,null,null,0," ",null,0]
[null,null,null,null,null,null,null,null,null,null,null,null,null,null,0," ",null,0]
[null,null,null,null,null,null,null,null,null,null,null,null,null,null,0," ",null,0]
[null,null,null,null,null,null,null,null,null,null,null,null,null,null,0," ",null,0]
[null,null,null,null,null,null,null,null,null,null,null,null,null,null,0," ",null,0]
[null,null,null,null,null,null,null,null,null,null,null,null,null,null,0," ",null,0]
[null,null,null,null,null,null,null,null,null,null,null,null,null,null,0," ",null,0]
[null,null,null,null,null,null,null,null,null,null,null,null,null,null,0," ",null,0]
[null,null,null,null,null,null,null,null,null,null,null,null,null,null,0," ",null,0]
[null,null,null,null,null,null,null,null,null,null,null,null,null,null,0," ",null,0]
[null,null,null,null,null,null,null,null,null,null,null,null,null,null,0," ",null,0]
[null,null,null,null,null,null,null,null,null,null,null,null,null,null,0," ",null,0]
[null,null,null,null,null,null,null,null,null,null,null,null,null,null,0," ",null,0]
[null,null,null,null,null,null,null,null,null,null,null,null,null,null,0," ",null,0]
[null,null,null,null,null,null,null,null,null,null,null,null,null,null,0," ",null,0]
[null,null,null,null,null,null,null,null,null,null,null,null,null,null,0," ",null,0]
[null,null,null,null,null,null,null,null,null,null,null,null,null,null,0," ",null,0]
[null,null,null,null,null,null,null,null,null,null,null,null,null,null,0," ",null,0]
[null,null,null,null,null,null,null,null,null,null,null,null,null,null,0," ",null,{"$f":"IF(Q281>0,Q281*O281,0)","v":0}]
[null,null,null,null,null,null,null,null,null,null,null,null,null,null,{"$f":"K282*L282*M282","v":0}," ",null,0]
[null,null,null,null,null,null,null,null,null,null,null,null,null,null,0," ",null,0]
[null,null,null,null,null,null,null,null,null,null,null,null,null,null,0," ",null,0]
[null,null,null,null,null,null,null,null,null,null,null,null,null,null,0," ",null,0]
[null,null,null,null,null,null,null,null,null,null,null,null,null,null,0," ",null,0]
[null,null,null,null,null,null,null,null,null,null,null,null,null,null,0," ",null,0]
[null,null,null,null,null,null,null,null,null,null,null,null,null,null,0," ",null,0]
[null,null,null,null,null,null,null,null,null,null,null,null,null,null,0," ",null,0]
[null,null,null,null,null,null,null,null,null,null,null,null,null,null,0,{"$f":"IF(ISBLANK(J290),\" \",IF(N290=\"gesamt\",(O290*(VLOOKUP(J290,$X$2:$AB$6,5))),(O290*VLOOKUP(J290,$X$2:$AB$6,3))))","v":" "},null,0]
[null,null,null,null,null,null,null,null,null,null,null,null,null,null,0," ",null,0]
[null,null,null,null,null,null,null,null,null,null,null,null,null,null,0," ",null,0]
[null,null,null,null,null,null,null,null,null,null,null,null,null,null,0," ",null,0]
[null,null,null,null,null,null,null,null,null,null,null,null,null,null,0," ",null,0]
[null,null,null,null,null,null,null,null,null,null,null,null,null,null,0," ",null,0]
[null,null,null,null,null,null,null,null,null,null,null,null,null,null,0," ",null,0]
[null,null,null,null,null,null,null,null,null,null,null,null,null,null,0," ",null,0]
[null,null,null,null,null,null,null,null,null,null,null,null,null,null,0," ",null,0]
[null,null,null,null,null,null,null,null,null,null,null,null,null,null,0," ",null,0]
[null,null,null,null,null,null,null,null,null,null,null,null,null,null,0," ",null,0]
[null,null,null,null,null,null,null,null,null,null,null,null,null,null,0," ",null,0]
[null,null,null,null,null,null,null,null,null,null,null,null,null,null,0," ",null,0]
[null,null,null,null,null,null,null,null,null,null,null,null,null,null,0," ",null,0]
[null,null,null,null,null,null,null,null,null,null,null,null,null,null,0," ",null,0]
[null,null,null,null,null,null,null,null,null,null,null,null,null,null,0," ",null,0]
[null,null,null,null,null,null,null,null,null,null,null,null,null,null,0," ",null,0]
[null,null,null,null,null,null,null,null,null,null,null,null,null,null,0," ",null,0]
[null,null,null,null,null,null,null,null,null,null,null,null,null,null,0," ",null,0]
[null,null,null,null,null,null,null,null,null,null,null,null,null,null,0," ",null,0]
[null,null,null,null,null,null,null,null,null,null,null,null,null,null,0," ",null,0]
[null,null,null,null,null,null,null,null,null,null,null,null,null,null,0," ",null,0]
[null,null,null,null,null,null,null,null,null,null,null,null,null,null,0," ",null,0]
[null,null,null,null,null,null,null,null,null,null,null,null,null,null,0," ",null,0]
[null,null,null,null,null,null,null,null,null,null,null,null,null,null,0," ",null,0]
[null,null,null,null,null,null,null,null,null,null,null,null,null,null,0," ",null,0]
[null,null,null,null,null,null,null,null,null,null,null,null,null,null,0," ",null,0]
[null,null,null,null,null,null,null,null,null,null,null,null,null,null,0," ",null,0]
[null,null,null,null,null,null,null,null,null,null,null,null,null,null,0," ",null,0]
[null,null,null,null,null,null,null,null,null,null,null,null,null,null,0," ",null,0]
[null,null,null,null,null,null,null,null,null,null,null,null,null,null,0," ",null,0]
[null,null,null,null,null,null,null,null,null,null,null,null,null,null,0," ",null,0]
[null,null,null,null,null,null,null,null,null,null,null,null,null,null,0," ",null,0]
[null,null,null,null,null,null,null,null,null,null,null,null,null,null,0," ",null,0]
[null,null,null,null,null,null,null,null,null,null,null,null,null,null,0," ",null,0]
[null,null,null,null,null,null,null,null,null,null,null,null,null,null,0," ",null,0]
[null,null,null,null,null,null,null,null,null,null,null,null,null,null,0," ",null,0]
[null,null,null,null,null,null,null,null,null,null,null,null,null,null,0," ",null,0]
[null,null,null,null,null,null,null,null,null,null,null,null,null,null,0," ",null,0]
[null,null,null,null,null,null,null,null,null,null,null,null,null,null,0," ",null,0]
[null,null,null,null,null,null,null,null,null,null,null,null,null,null,0," ",null,0]
[null,null,null,null,null,null,null,null,null,null,null,null,null,null,0," ",null,0]
[null,null,null,null,null,null,null,null,null,null,null,null,null,null,0," ",null,0]
[null,null,null,null,null,null,null,null,null,null,null,null,null,null,0," ",null,0]
[null,null,null,null,null,null,null,null,null,null,null,null,null,null,0," ",null,0]
[null,null,null,null,null,null,null,null,null,null,null,null,null,null,0," ",null,0]
[null,null,null,null,null,null,null,null,null,null,null,null,null,null,0," ",null,0]
[null,null,null,null,null,null,null,null,null,null,null,null,null,null,0," ",null,0]
[null,null,null,null,null,null,null,null,null,null,null,null,null,null,0," ",null,0]
[null,null,null,null,null,null,null,null,null,null,null,null,null,null,0," ",null,0]
[null,null,null,null,null,null,null,null,null,null,null,null,null,null,0," ",null,0]
[null,null,null,null,null,null,null,null,null,null,null,null,null,null,0," ",null,0]
[null,null,null,null,null,null,null,null,null,null,null,null,null,null,0," ",null,0]
[null,null,null,null,null,null,null,null,null,null,null,null,null,null,0," ",null,0]
[null,null,null,null,null,null,null,null,null,null,null,null,null,null,0," ",null,0]
[null,null,null,null,null,null,null,null,null,null,null,null,null,null,0," ",null,{"$f":"IF(Q345>0,Q345*O345,0)","v":0}]
[null,null,null,null,null,null,null,null,null,null,null,null,null,null,{"$f":"K346*L346*M346","v":0}," ",null,0]
[null,null,null,null,null,null,null,null,null,null,null,null,null,null,0," ",null,0]
[null,null,null,null,null,null,null,null,null,null,null,null,null,null,0," ",null,0]
[null,null,null,null,null,null,null,null,null,null,null,null,null,null,0," ",null,0]
[null,null,null,null,null,null,null,null,null,null,null,null,null,null,0," ",null,0]
[null,null,null,null,null,null,null,null,null,null,null,null,null,null,0," ",null,0]
[null,null,null,null,null,null,null,null,null,null,null,null,null,null,0," ",null,0]
[null,null,null,null,null,null,null,null,null,null,null,null,null,null,0," ",null,0]
[null,null,null,null,null,null,null,null,null,null,null,null,null,null,0,{"$f":"IF(ISBLANK(J354),\" \",IF(N354=\"gesamt\",(O354*(VLOOKUP(J354,$X$2:$AB$6,5))),(O354*VLOOKUP(J354,$X$2:$AB$6,3))))","v":" "},null,0]
[null,null,null,null,null,null,null,null,null,null,null,null,null,null,0," ",null,0]
[null,null,null,null,null,null,null,null,null,null,null,null,null,null,0," ",null,0]
[null,null,null,null,null,null,null,null,null,null,null,null,null,null,0," ",null,0]
[null,null,null,null,null,null,null,null,null,null,null,null,null,null,0," ",null,0]
[null,null,null,null,null,null,null,null,null,null,null,null,null,null,0," ",null,0]
[null,null,null,null,null,null,null,null,null,null,null,null,null,null,0," ",null,0]
[null,null,null,null,null,null,null,null,null,null,null,null,null,null,0," ",null,0]
[null,null,null,null,null,null,null,null,null,null,null,null,null,null,0," ",null,0]
[null,null,null,null,null,null,null,null,null,null,null,null,null,null,0," ",null,0]
[null,null,null,null,null,null,null,null,null,null,null,null,null,null,0," ",null,0]
[null,null,null,null,null,null,null,null,null,null,null,null,null,null,0," ",null,0]
[null,null,null,null,null,null,null,null,null,null,null,null,null,null,0," ",null,0]
[null,null,null,null,null,null,null,null,null,null,null,null,null,null,0," ",null,0]
[null,null,null,null,null,null,null,null,null,null,null,null,null,null,0," ",null,0]
[null,null,null,null,null,null,null,null,null,null,null,null,null,null,0," ",null,0]
[null,null,null,null,null,null,null,null,null,null,null,null,null,null,0," ",null,0]
[null,null,null,null,null,null,null,null,null,null,null,null,null,null,0," ",null,0]
[null,null,null,null,null,null,null,null,null,null,null,null,null,null,0," ",null,0]
[null,null,null,null,null,null,null,null,null,null,null,null,null,null,0," ",null,0]
[null,null,null,null,null,null,null,null,null,null,null,null,null,null,0," ",null,0]
[null,null,null,null,null,null,null,null,null,null,null,null,null,null,0," ",null,0]
[null,null,null,null,null,null,null,null,null,null,null,null,null,null,0," ",null,0]
[null,null,null,null,null,null,null,null,null,null,null,null,null,null,0," ",null,0]
[null,null,null,null,null,null,null,null,null,null,null,null,null,null,0," ",null,0]
[null,null,null,null,null,null,null,null,null,null,null,null,null,null,0," ",null,0]
[null,null,null,null,null,null,null,null,null,null,null,null,null,null,0," ",null,0]
[null,null,null,null,null,null,null,null,null,null,null,null,null,null,0," ",null,0]
[null,null,null,null,null,null,null,null,null,null,null,null,null,null,0," ",null,0]
[null,null,null,null,null,null,null,null,null,null,null,null,null,null,0," ",null,0]
[null,null,null,null,null,null,null,null,null,null,null,null,null,null,0," ",null,0]
[null,null,null,null,null,null,null,null,null,null,null,null,null,null,0," ",null,0]
[null,null,null,null,null,null,null,null,null,null,null,null,null,null,0," ",null,0]
[null,null,null,null,null,null,null,null,null,null,null,null,null,null,0," ",null,0]
[null,null,null,null,null,null,null,null,null,null,null,null,null,null,0," ",null,0]
[null,null,null,null,null,null,null,null,null,null,null,null,null,null,0," ",null,0]
[null,null,null,null,null,null,null,null,null,null,null,null,null,null,0," ",null,0]
[null,null,null,null,null,null,null,null,null,null,null,null,null,null,0," ",null,0]
[null,null,null,null,null,null,null,null,null,null,null,null,null,null,0," ",null,0]
[null,null,null,null,null,null,null,null,null,null,null,null,null,null,0," ",null,0]
[null,null,null,null,null,null,null,null,null,null,null,null,null,null,0," ",null,0]
[null,null,null,null,null,null,null,null,null,null,null,null,null,null,0," ",null,0]
[null,null,null,null,null,null,null,null,null,null,null,null,null,null,0," ",null,0]
[null,null,null,null,null,null,null,null,null,null,null,null,null,null,0," ",null,0]
[null,null,null,null,null,null,null,null,null,null,null,null,null,null,0," ",null,0]
[null,null,null,null,null,null,null,null,null,null,null,null,null,null,0," ",null,0]
[null,null,null,null,null,null,null,null,null,null,null,null,null,null,0," ",null,0]
[null,null,null,null,null,null,null,null,null,null,null,null,null,null,0," ",null,0]
[null,null,null,null,null,null,null,null,null,null,null,null,null,null,0," ",null,0]
[null,null,null,null,null,null,null,null,null,null,null,null,null,null,0," ",null,0]
[null,null,null,null,null,null,null,null,null,null,null,null,null,null,0," ",null,0]
[null,null,null,null,null,null,null,null,null,null,null,null,null,null,0," ",null,0]
[null,null,null,null,null,null,null,null,null,null,null,null,null,null,0," ",null,0]
[null,null,null,null,null,null,null,null,null,null,null,null,null,null,0," ",null,0]
[null,null,null,null,null,null,null,null,null,null,null,null,null,null,0," ",null,0]
[null,null,null,null,null,null,null,null,null,null,null,null,null,null,0," ",null,{"$f":"IF(Q409>0,Q409*O409,0)","v":0}]
[null,null,null,null,null,null,null,null,null,null,null,null,null,null,{"$f":"K410*L410*M410","v":0}," ",null,0]
[null,null,null,null,null,null,null,null,null,null,null,null,null,null,0," ",null,0]
[null,null,null,null,null,null,null,null,null,null,null,null,null,null,0," ",null,0]
[null,null,null,null,null,null,null,null,null,null,null,null,null,null,0," ",null,0]
[null,null,null,null,null,null,null,null,null,null,null,null,null,null,0," ",null,0]
[null,null,null,null,null,null,null,null,null,null,null,null,null,null,0," ",null,0]
[null,null,null,null,null,null,null,null,null,null,null,null,null,null,0," ",null,0]
[null,null,null,null,null,null,null,null,null,null,null,null,null,null,0," ",null,0]
[null,null,null,null,null,null,null,null,null,null,null,null,null,null,0,{"$f":"IF(ISBLANK(J418),\" \",IF(N418=\"gesamt\",(O418*(VLOOKUP(J418,$X$2:$AB$6,5))),(O418*VLOOKUP(J418,$X$2:$AB$6,3))))","v":" "},null,0]
[null,null,null,null,null,null,null,null,null,null,null,null,null,null,0," ",null,0]
[null,null,null,null,null,null,null,null,null,null,null,null,null,null,0," ",null,0]
[null,null,null,null,null,null,null,null,null,null,null,null,null,null,0," ",null,0]
[null,null,null,null,null,null,null,null,null,null,null,null,null,null,0," ",null,0]
[null,null,null,null,null,null,null,null,null,null,null,null,null,null,0," ",null,0]
[null,null,null,null,null,null,null,null,null,null,null,null,null,null,0," ",null,0]
[null,null,null,null,null,null,null,null,null,null,null,null,null,null,0," ",null,0]
[null,null,null,null,null,null,null,null,null,null,null,null,null,null,0," ",null,0]
[null,null,null,null,null,null,null,null,null,null,null,null,null,null,0," ",null,0]
[null,null,null,null,null,null,null,null,null,null,null,null,null,null,0," ",null,0]
[null,null,null,null,null,null,null,null,null,null,null,null,null,null,0," ",null,0]
[null,null,null,null,null,null,null,null,null,null,null,null,null,null,0," ",null,0]
[null,null,null,null,null,null,null,null,null,null,null,null,null,null,0," ",null,0]
[null,null,null,null,null,null,null,null,null,null,null,null,null,null,0," ",null,0]
[null,null,null,null,null,null,null,null,null,null,null,null,null,null,0," ",null,0]
[null,null,null,null,null,null,null,null,null,null,null,null,null,null,0," ",null,0]
[null,null,null,null,null,null,null,null,null,null,null,null,null,null,0," ",null,0]
[null,null,null,null,null,null,null,null,null,null,null,null,null,null,0," ",null,0]
[null,null,null,null,null,null,null,null,null,null,null,null,null,null,0," ",null,0]
[null,null,null,null,null,null,null,null,null,null,null,null,null,null,0," ",null,0]
[null,null,null,null,null,null,null,null,null,null,null,null,null,null,0," ",null,0]
[null,null,null,null,null,null,null,null,null,null,null,null,null,null,0," ",null,0]
[null,null,null,null,null,null,null,null,null,null,null,null,null,null,0," ",null,0]
[null,null,null,null,null,null,null,null,null,null,null,null,null,null,0," ",null,0]
[null,null,null,null,null,null,null,null,null,null,null,null,null,null,0," ",null,0]
[null,null,null,null,null,null,null,null,null,null,null,null,null,null,0," ",null,0]
[null,null,null,null,null,null,null,null,null,null,null,null,null,null,0," ",null,0]
[null,null,null,null,null,null,null,null,null,null,null,null,null,null,0," ",null,0]
[null,null,null,null,null,null,null,null,null,null,null,null,null,null,0," ",null,0]
[null,null,null,null,null,null,null,null,null,null,null,null,null,null,0," ",null,0]
[null,null,null,null,null,null,null,null,null,null,null,null,null,null,0," ",null,0]
[null,null,null,null,null,null,null,null,null,null,null,null,null,null,0," ",null,0]
[null,null,null,null,null,null,null,null,null,null,null,null,null,null,0," ",null,0]
[null,null,null,null,null,null,null,null,null,null,null,null,null,null,0," ",null,0]
[null,null,null,null,null,null,null,null,null,null,null,null,null,null,0," ",null,0]
[null,null,null,null,null,null,null,null,null,null,null,null,null,null,0," ",null,0]
[null,null,null,null,null,null,null,null,null,null,null,null,null,null,0," ",null,0]
[null,null,null,null,null,null,null,null,null,null,null,null,null,null,0," ",null,0]
[null,null,null,null,null,null,null,null,null,null,null,null,null,null,0," ",null,0]
[null,null,null,null,null,null,null,null,null,null,null,null,null,null,0," ",null,0]
[null,null,null,null,null,null,null,null,null,null,null,null,null,null,0," ",null,0]
[null,null,null,null,null,null,null,null,null,null,null,null,null,null,0," ",null,0]
[null,null,null,null,null,null,null,null,null,null,null,null,null,null,0," ",null,0]
[null,null,null,null,null,null,null,null,null,null,null,null,null,null,0," ",null,0]
[null,null,null,null,null,null,null,null,null,null,null,null,null,null,0," ",null,0]
[null,null,null,null,null,null,null,null,null,null,null,null,null,null,0," ",null,0]
[null,null,null,null,null,null,null,null,null,null,null,null,null,null,0," ",null,0]
[null,null,null,null,null,null,null,null,null,null,null,null,null,null,0," ",null,0]
[null,null,null,null,null,null,null,null,null,null,null,null,null,null,0," ",null,0]
[null,null,null,null,null,null,null,null,null,null,null,null,null,null,0," ",null,0]
[null,null,null,null,null,null,null,null,null,null,null,null,null,null,0," ",null,0]
[null,null,null,null,null,null,null,null,null,null,null,null,null,null,0," ",null,0]
[null,null,null,null,null,null,null,null,null,null,null,null,null,null,0," ",null,0]
[null,null,null,null,null,null,null,null,null,null,null,null,null,null,0," ",null,0]
[null,null,null,null,null,null,null,null,null,null,null,null,null,null,0," ",null,{"$f":"IF(Q473>0,Q473*O473,0)","v":0}]
[null,null,null,null,null,null,null,null,null,null,null,null,null,null,{"$f":"K474*L474*M474","v":0}," ",null,0]
[null,null,null,null,null,null,null,null,null,null,null,null,null,null,0," ",null,0]
[null,null,null,null,null,null,null,null,null,null,null,null,null,null,0," ",null,0]
[null,null,null,null,null,null,null,null,null,null,null,null,null,null,0," ",null,0]
[null,null,null,null,null,null,null,null,null,null,null,null,null,null,0," ",null,0]
[null,null,null,null,null,null,null,null,null,null,null,null,null,null,0," ",null,0]
[null,null,null,null,null,null,null,null,null,null,null,null,null,null,0," ",null,0]
[null,null,null,null,null,null,null,null,null,null,null,null,null,null,0," ",null,0]
[null,null,null,null,null,null,null,null,null,null,null,null,null,null,0,{"$f":"IF(ISBLANK(J482),\" \",IF(N482=\"gesamt\",(O482*(VLOOKUP(J482,$X$2:$AB$6,5))),(O482*VLOOKUP(J482,$X$2:$AB$6,3))))","v":" "},null,0]
[null,null,null,null,null,null,null,null,null,null,null,null,null,null,0," ",null,0]
[null,null,null,null,null,null,null,null,null,null,null,null,null,null,0," ",null,0]
[null,null,null,null,null,null,null,null,null,null,null,null,null,null,0," ",null,0]
[null,null,null,null,null,null,null,null,null,null,null,null,null,null,0," ",null,0]
[null,null,null,null,null,null,null,null,null,null,null,null,null,null,0," ",null,0]
[null,null,null,null,null,null,null,null,null,null,null,null,null,null,0," ",null,0]
[null,null,null,null,null,null,null,null,null,null,null,null,null,null,0," ",null,0]
[null,null,null,null,null,null,null,null,null,null,null,null,null,null,0," ",null,0]
[null,null,null,null,null,null,null,null,null,null,null,null,null,null,0," ",null,0]
[null,null,null,null,null,null,null,null,null,null,null,null,null,null,0," ",null,0]
[null,null,null,null,null,null,null,null,null,null,null,null,null,null,0," ",null,0]
[null,null,null,null,null,null,null,null,null,null,null,null,null,null,0," ",null,0]
[null,null,null,null,null,null,null,null,null,null,null,null,null,null,0," ",null,0]
[null,null,null,null,null,null,null,null,null,null,null,null,null,null,0," ",null,0]
[null,null,null,null,null,null,null,null,null,null,null,null,null,null,0," ",null,0]
[null,null,null,null,null,null,null,null,null,null,null,null,null,null,0," ",null,0]
[null,null,null,null,null,null,null,null,null,null,null,null,null,null,0," ",null,0]
[null,null,null,null,null,null,null,null,null,null,null,null,null,null,0," ",null,0]
[null,null,null,null,null,null,null,null,null,null,null,null,null,null,0," ",null,0]
[null,null,null,null,null,null,null,null,null,null,null,null,null,null,0," ",null,0]
[null,null,null,null,null,null,null,null,null,null,null,null,null,null,0," ",null,0]
[null,null,null,null,null,null,null,null,null,null,null,null,null,null,0," ",null,0]
[null,null,null,null,null,null,null,null,null,null,null,null,null,null,0," ",null,0]
[null,null,null,null,null,null,null,null,null,null,null,null,null,null,0," ",null,0]
[null,null,null,null,null,null,null,null,null,null,null,null,null,null,0," ",null,0]
[null,null,null,null,null,null,null,null,null,null,null,null,null,null,0," ",null,0]
[null,null,null,null,null,null,null,null,null,null,null,null,null,null,0," ",null,0]
[null,null,null,null,null,null,null,null,null,null,null,null,null,null,0," ",null,0]
[null,null,null,null,null,null,null,null,null,null,null,null,null,null,0," ",null,0]
[null,null,null,null,null,null,null,null,null,null,null,null,null,null,0," ",null,0]
[null,null,null,null,null,null,null,null,null,null,null,null,null,null,0," ",null,0]
[null,null,null,null,null,null,null,null,null,null,null,null,null,null,0," ",null,0]
[null,null,null,null,null,null,null,null,null,null,null,null,null,null,0," ",null,0]
[null,null,null,null,null,null,null,null,null,null,null,null,null,null,0," ",null,0]
[null,null,null,null,null,null,null,null,null,null,null,null,null,null,0," ",null,0]
[null,null,null,null,null,null,null,null,null,null,null,null,null,null,0," ",null,0]
[null,null,null,null,null,null,null,null,null,null,null,null,null,null,0," ",null,0]
[null,null,null,null,null,null,null,null,null,null,null,null,null,null,0," ",null,0]
[null,null,null,null,null,null,null,null,null,null,null,null,null,null,0," ",null,0]
[null,null,null,null,null,null,null,null,null,null,null,null,null,null,0," ",null,0]
[null,null,null,null,null,null,null,null,null,null,null,null,null,null,0," ",null,0]
[null,null,null,null,null,null,null,null,null,null,null,null,null,null,0," ",null,0]
[null,null,null,null,null,null,null,null,null,null,null,null,null,null,0," ",null,0]
[null,null,null,null,null,null,null,null,null,null,null,null,null,null,0," ",null,0]
[null,null,null,null,null,null,null,null,null,null,null,null,null,null,0," ",null,0]
[null,null,null,null,null,null,null,null,null,null,null,null,null,null,0," ",null,0]
[null,null,null,null,null,null,null,null,null,null,null,null,null,null,0," ",null,0]
[null,null,null,null,null,null,null,null,null,null,null,null,null,null,0," ",null,0]
[null,null,null,null,null,null,null,null,null,null,null,null,null,null,0," ",null,0]
[null,null,null,null,null,null,null,null,null,null,null,null,null,null,0," ",null,0]
[null,null,null,null,null,null,null,null,null,null,null,null,null,null,0," ",null,0]
[null,null,null,null,null,null,null,null,null,null,null,null,null,null,0," ",null,0]
[null,null,null,null,null,null,null,null,null,null,null,null,null,null,0," ",null,0]
[null,null,null,null,null,null,null,null,null,null,null,null,null,null,0," ",null,0]
[null,null,null,null,null,null,null,null,null,null,null,null,null,null,0," ",null,{"$f":"IF(Q537>0,Q537*O537,0)","v":0}]
[null,null,null,null,null,null,null,null,null,null,null,null,null,null,{"$f":"K538*L538*M538","v":0}," ",null,0]
[null,null,null,null,null,null,null,null,null,null,null,null,null,null,0," ",null,0]
[null,null,null,null,null,null,null,null,null,null,null,null,null,null,0," ",null,0]
[null,null,null,null,null,null,null,null,null,null,null,null,null,null,0," ",null,0]
[null,null,null,null,null,null,null,null,null,null,null,null,null,null,0," ",null,0]
[null,null,null,null,null,null,null,null,null,null,null,null,null,null,0," ",null,0]
[null,null,null,null,null,null,null,null,null,null,null,null,null,null,0," ",null,0]
[null,null,null,null,null,null,null,null,null,null,null,null,null,null,0," ",null,0]
[null,null,null,null,null,null,null,null,null,null,null,null,null,null,0,{"$f":"IF(ISBLANK(J546),\" \",IF(N546=\"gesamt\",(O546*(VLOOKUP(J546,$X$2:$AB$6,5))),(O546*VLOOKUP(J546,$X$2:$AB$6,3))))","v":" "},null,0]
[null,null,null,null,null,null,null,null,null,null,null,null,null,null,0," ",null,0]
[null,null,null,null,null,null,null,null,null,null,null,null,null,null,0," ",null,0]
[null,null,null,null,null,null,null,null,null,null,null,null,null,null,0," ",null,0]
[null,null,null,null,null,null,null,null,null,null,null,null,null,null,0," ",null,0]
[null,null,null,null,null,null,null,null,null,null,null,null,null,null,0," ",null,0]
[null,null,null,null,null,null,null,null,null,null,null,null,null,null,0," ",null,0]
[null,null,null,null,null,null,null,null,null,null,null,null,null,null,0," ",null,0]
[null,null,null,null,null,null,null,null,null,null,null,null,null,null,0," ",null,0]
[null,null,null,null,null,null,null,null,null,null,null,null,null,null,0," ",null,0]
[null,null,null,null,null,null,null,null,null,null,null,null,null,null,0," ",null,0]
[null,null,null,null,null,null,null,null,null,null,null,null,null,null,0," ",null,0]
[null,null,null,null,null,null,null,null,null,null,null,null,null,null,0," ",null,0]
[null,null,null,null,null,null,null,null,null,null,null,null,null,null,0," ",null,0]
[null,null,null,null,null,null,null,null,null,null,null,null,null,null,0," ",null,0]
[null,null,null,null,null,null,null,null,null,null,null,null,null,null,0," ",null,0]
[null,null,null,null,null,null,null,null,null,null,null,null,null,null,0," ",null,0]
[null,null,null,null,null,null,null,null,null,null,null,null,null,null,0," ",null,0]
[null,null,null,null,null,null,null,null,null,null,null,null,null,null,0," ",null,0]
[null,null,null,null,null,null,null,null,null,null,null,null,null,null,0," ",null,0]
[null,null,null,null,null,null,null,null,null,null,null,null,null,null,0," ",null,0]
[null,null,null,null,null,null,null,null,null,null,null,null,null,null,0," ",null,0]
[null,null,null,null,null,null,null,null,null,null,null,null,null,null,0," ",null,0]
[null,null,null,null,null,null,null,null,null,null,null,null,null,null,0," ",null,0]
[null,null,null,null,null,null,null,null,null,null,null,null,null,null,0," ",null,0]
[null,null,null,null,null,null,null,null,null,null,null,null,null,null,0," ",null,0]
[null,null,null,null,null,null,null,null,null,null,null,null,null,null,0," ",null,0]
[null,null,null,null,null,null,null,null,null,null,null,null,null,null,0," ",null,0]
[null,null,null,null,null,null,null,null,null,null,null,null,null,null,0," ",null,0]
[null,null,null,null,null,null,null,null,null,null,null,null,null,null,0," ",null,0]
[null,null,null,null,null,null,null,null,null,null,null,null,null,null,0," ",null,0]
[null,null,null,null,null,null,null,null,null,null,null,null,null,null,0," ",null,0]
[null,null,null,null,null,null,null,null,null,null,null,null,null,null,0," ",null,0]
[null,null,null,null,null,null,null,null,null,null,null,null,null,null,0," ",null,0]
[null,null,null,null,null,null,null,null,null,null,null,null,null,null,0," ",null,0]
[null,null,null,null,null,null,null,null,null,null,null,null,null,null,0," ",null,0]
[null,null,null,null,null,null,null,null,null,null,null,null,null,null,0," ",null,0]
[null,null,null,null,null,null,null,null,null,null,null,null,null,null,0," ",null,0]
[null,null,null,null,null,null,null,null,null,null,null,null,null,null,0," ",null,0]
[null,null,null,null,null,null,null,null,null,null,null,null,null,null,0," ",null,0]
[null,null,null,null,null,null,null,null,null,null,null,null,null,null,0," ",null,0]
[null,null,null,null,null,null,null,null,null,null,null,null,null,null,0," ",null,0]
[null,null,null,null,null,null,null,null,null,null,null,null,null,null,0," ",null,0]
[null,null,null,null,null,null,null,null,null,null,null,null,null,null,0," ",null,0]
[null,null,null,null,null,null,null,null,null,null,null,null,null,null,0," ",null,0]
[null,null,null,null,null,null,null,null,null,null,null,null,null,null,0," ",null,0]
[null,null,null,null,null,null,null,null,null,null,null,null,null,null,0," ",null,0]
[null,null,null,null,null,null,null,null,null,null,null,null,null,null,0," ",null,0]
[null,null,null,null,null,null,null,null,null,null,null,null,null,null,0," ",null,0]
[null,null,null,null,null,null,null,null,null,null,null,null,null,null,0," ",null,0]
[null,null,null,null,null,null,null,null,null,null,null,null,null,null,0," ",null,0]
[null,null,null,null,null,null,null,null,null,null,null,null,null,null,0," ",null,0]
[null,null,null,null,null,null,null,null,null,null,null,null,null,null,0," ",null,0]
[null,null,null,null,null,null,null,null,null,null,null,null,null,null,0," ",null,0]
[null,null,null,null,null,null,null,null,null,null,null,null,null,null,0," ",null,0]
[null,null,null,null,null,null,null,null,null,null,null,null,null,null,0," ",null,{"$f":"IF(Q601>0,Q601*O601,0)","v":0}]
[null,null,null,null,null,null,null,null,null,null,null,null,null,null,{"$f":"K602*L602*M602","v":0}," ",null,0]
[null,null,null,null,null,null,null,null,null,null,null,null,null,null,0," ",null,0]
[null,null,null,null,null,null,null,null,null,null,null,null,null,null,0," ",null,0]
[null,null,null,null,null,null,null,null,null,null,null,null,null,null,0," ",null,0]
[null,null,null,null,null,null,null,null,null,null,null,null,null,null,0," ",null,0]
[null,null,null,null,null,null,null,null,null,null,null,null,null,null,0," ",null,0]
[null,null,null,null,null,null,null,null,null,null,null,null,null,null,0," ",null,0]
[null,null,null,null,null,null,null,null,null,null,null,null,null,null,0," ",null,0]
[null,null,null,null,null,null,null,null,null,null,null,null,null,null,0,{"$f":"IF(ISBLANK(J610),\" \",IF(N610=\"gesamt\",(O610*(VLOOKUP(J610,$X$2:$AB$6,5))),(O610*VLOOKUP(J610,$X$2:$AB$6,3))))","v":" "},null,0]
[null,null,null,null,null,null,null,null,null,null,null,null,null,null,0," ",null,0]
[null,null,null,null,null,null,null,null,null,null,null,null,null,null,0," ",null,0]
[null,null,null,null,null,null,null,null,null,null,null,null,null,null,0," ",null,0]
[null,null,null,null,null,null,null,null,null,null,null,null,null,null,0," ",null,0]
[null,null,null,null,null,null,null,null,null,null,null,null,null,null,0," ",null,0]
[null,null,null,null,null,null,null,null,null,null,null,null,null,null,0," ",null,0]
[null,null,null,null,null,null,null,null,null,null,null,null,null,null,0," ",null,0]
[null,null,null,null,null,null,null,null,null,null,null,null,null,null,0," ",null,0]
[null,null,null,null,null,null,null,null,null,null,null,null,null,null,0," ",null,0]
[null,null,null,null,null,null,null,null,null,null,null,null,null,null,0," ",null,0]
[null,null,null,null,null,null,null,null,null,null,null,null,null,null,0," ",null,0]
[null,null,null,null,null,null,null,null,null,null,null,null,null,null,0," ",null,0]
[null,null,null,null,null,null,null,null,null,null,null,null,null,null,0," ",null,0]
[null,null,null,null,null,null,null,null,null,null,null,null,null,null,0," ",null,0]
[null,null,null,null,null,null,null,null,null,null,null,null,null,null,0," ",null,0]
[null,null,null,null,null,null,null,null,null,null,null,null,null,null,0," ",null,0]
[null,null,null,null,null,null,null,null,null,null,null,null,null,null,0," ",null,0]
[null,null,null,null,null,null,null,null,null,null,null,null,null,null,0," ",null,0]
[null,null,null,null,null,null,null,null,null,null,null,null,null,null,0," ",null,0]
[null,null,null,null,null,null,null,null,null,null,null,null,null,null,0," ",null,0]
[null,null,null,null,null,null,null,null,null,null,null,null,null,null,0," ",null,0]
[null,null,null,null,null,null,null,null,null,null,null,null,null,null,0," ",null,0]
[null,null,null,null,null,null,null,null,null,null,null,null,null,null,0," ",null,0]
[null,null,null,null,null,null,null,null,null,null,null,null,null,null,0," ",null,0]
[null,null,null,null,null,null,null,null,null,null,null,null,null,null,0," ",null,0]
[null,null,null,null,null,null,null,null,null,null,null,null,null,null,0," ",null,0]
[null,null,null,null,null,null,null,null,null,null,null,null,null,null,0," ",null,0]
[null,null,null,null,null,null,null,null,null,null,null,null,null,null,0," ",null,0]
[null,null,null,null,null,null,null,null,null,null,null,null,null,null,0," ",null,0]
[null,null,null,null,null,null,null,null,null,null,null,null,null,null,0," ",null,0]
[null,null,null,null,null,null,null,null,null,null,null,null,null,null,0," ",null,0]
[null,null,null,null,null,null,null,null,null,null,null,null,null,null,0," ",null,0]
[null,null,null,null,null,null,null,null,null,null,null,null,null,null,0," ",null,0]
[null,null,null,null,null,null,null,null,null,null,null,null,null,null,0," ",null,0]
[null,null,null,null,null,null,null,null,null,null,null,null,null,null,0," ",null,0]
[null,null,null,null,null,null,null,null,null,null,null,null,null,null,0," ",null,0]
[null,null,null,null,null,null,null,null,null,null,null,null,null,null,0," ",null,0]
[null,null,null,null,null,null,null,null,null,null,null,null,null,null,0," ",null,0]
[null,null,null,null,null,null,null,null,null,null,null,null,null,null,0," ",null,0]
[null,null,null,null,null,null,null,null,null,null,null,null,null,null,0," ",null,0]
[null,null,null,null,null,null,null,null,null,null,null,null,null,null,0," ",null,0]
[null,null,null,null,null,null,null,null,null,null,null,null,null,null,0," ",null,0]
[null,null,null,null,null,null,null,null,null,null,null,null,null,null,0," ",null,0]
[null,null,null,null,null,null,null,null,null,null,null,null,null,null,0," ",null,0]
[null,null,null,null,null,null,null,null,null,null,null,null,null,null,0," ",null,0]
[null,null,null,null,null,null,null,null,null,null,null,null,null,null,0," ",null,0]
[null,null,null,null,null,null,null,null,null,null,null,null,null,null,0," ",null,0]
[null,null,null,null,null,null,null,null,null,null,null,null,null,null,0," ",null,0]
[null,null,null,null,null,null,null,null,null,null,null,null,null,null,0," ",null,0]
[null,null,null,null,null,null,null,null,null,null,null,null,null,null,0," ",null,0]
[null,null,null,null,null,null,null,null,null,null,null,null,null,null,0," ",null,0]
[null,null,null,null,null,null,null,null,null,null,null,null,null,null,0," ",null,0]
[null,null,null,null,null,null,null,null,null,null,null,null,null,null,0," ",null,0]
[null,null,null,null,null,null,null,null,null,null,null,null,null,null,0," ",null,0]
[null,null,null,null,null,null,null,null,null,null,null,null,null,null,0," ",null,{"$f":"IF(Q665>0,Q665*O665,0)","v":0}]
[null,null,null,null,null,null,null,null,null,null,null,null,null,null,{"$f":"K666*L666*M666","v":0}," ",null,0]
[null,null,null,null,null,null,null,null,null,null,null,null,null,null,0," ",null,0]
[null,null,null,null,null,null,null,null,null,null,null,null,null,null,0," ",null,0]
[null,null,null,null,null,null,null,null,null,null,null,null,null,null,0," ",null,0]
[null,null,null,null,null,null,null,null,null,null,null,null,null,null,0," ",null,0]
[null,null,null,null,null,null,null,null,null,null,null,null,null,null,0," ",null,0]
[null,null,null,null,null,null,null,null,null,null,null,null,null,null,0," ",null,0]
[null,null,null,null,null,null,null,null,null,null,null,null,null,null,0," ",null,0]
[null,null,null,null,null,null,null,null,null,null,null,null,null,null,0,{"$f":"IF(ISBLANK(J674),\" \",IF(N674=\"gesamt\",(O674*(VLOOKUP(J674,$X$2:$AB$6,5))),(O674*VLOOKUP(J674,$X$2:$AB$6,3))))","v":" "},null,0]
[null,null,null,null,null,null,null,null,null,null,null,null,null,null,0," ",null,0]
[null,null,null,null,null,null,null,null,null,null,null,null,null,null,0," ",null,0]
[null,null,null,null,null,null,null,null,null,null,null,null,null,null,0," ",null,0]
[null,null,null,null,null,null,null,null,null,null,null,null,null,null,0," ",null,0]
[null,null,null,null,null,null,null,null,null,null,null,null,null,null,0," ",null,0]
[null,null,null,null,null,null,null,null,null,null,null,null,null,null,0," ",null,0]
[null,null,null,null,null,null,null,null,null,null,null,null,null,null,0," ",null,0]
[null,null,null,null,null,null,null,null,null,null,null,null,null,null,0," ",null,0]
[null,null,null,null,null,null,null,null,null,null,null,null,null,null,0," ",null,0]
[null,null,null,null,null,null,null,null,null,null,null,null,null,null,0," ",null,0]
[null,null,null,null,null,null,null,null,null,null,null,null,null,null,0," ",null,0]
[null,null,null,null,null,null,null,null,null,null,null,null,null,null,0," ",null,0]
[null,null,null,null,null,null,null,null,null,null,null,null,null,null,0," ",null,0]
[null,null,null,null,null,null,null,null,null,null,null,null,null,null,0," ",null,0]
[null,null,null,null,null,null,null,null,null,null,null,null,null,null,0," ",null,0]
[null,null,null,null,null,null,null,null,null,null,null,null,null,null,0," ",null,0]
[null,null,null,null,null,null,null,null,null,null,null,null,null,null,0," ",null,0]
[null,null,null,null,null,null,null,null,null,null,null,null,null,null,0," ",null,0]
[null,null,null,null,null,null,null,null,null,null,null,null,null,null,0," ",null,0]
[null,null,null,null,null,null,null,null,null,null,null,null,null,null,0," ",null,0]
[null,null,null,null,null,null,null,null,null,null,null,null,null,null,0," ",null,0]
[null,null,null,null,null,null,null,null,null,null,null,null,null,null,0," ",null,0]
[null,null,null,null,null,null,null,null,null,null,null,null,null,null,0," ",null,0]
[null,null,null,null,null,null,null,null,null,null,null,null,null,null,0," ",null,0]
[null,null,null,null,null,null,null,null,null,null,null,null,null,null,0," ",null,0]
[null,null,null,null,null,null,null,null,null,null,null,null,null,null,0," ",null,0]
[null,null,null,null,null,null,null,null,null,null,null,null,null,null,0," ",null,0]
[null,null,null,null,null,null,null,null,null,null,null,null,null,null,0," ",null,0]
[null,null,null,null,null,null,null,null,null,null,null,null,null,null,0," ",null,0]
[null,null,null,null,null,null,null,null,null,null,null,null,null,null,0," ",null,0]
[null,null,null,null,null,null,null,null,null,null,null,null,null,null,0," ",null,0]
[null,null,null,null,null,null,null,null,null,null,null,null,null,null,0," ",null,0]
[null,null,null,null,null,null,null,null,null,null,null,null,null,null,0," ",null,0]
[null,null,null,null,null,null,null,null,null,null,null,null,null,null,0," ",null,0]
[null,null,null,null,null,null,null,null,null,null,null,null,null,null,0," ",null,0]
[null,null,null,null,null,null,null,null,null,null,null,null,null,null,0," ",null,0]
[null,null,null,null,null,null,null,null,null,null,null,null,null,null,0," ",null,0]
[null,null,null,null,null,null,null,null,null,null,null,null,null,null,0," ",null,0]
[null,null,null,null,null,null,null,null,null,null,null,null,null,null,0," ",null,0]
[null,null,null,null,null,null,null,null,null,null,null,null,null,null,0," ",null,0]
[null,null,null,null,null,null,null,null,null,null,null,null,null,null,0," ",null,0]
[null,null,null,null,null,null,null,null,null,null,null,null,null,null,0," ",null,0]
[null,null,null,null,null,null,null,null,null,null,null,null,null,null,0," ",null,0]
[null,null,null,null,null,null,null,null,null,null,null,null,null,null,0," ",null,0]
[null,null,null,null,null,null,null,null,null,null,null,null,null,null,0," ",null,0]
[null,null,null,null,null,null,null,null,null,null,null,null,null,null,0," ",null,0]
[null,null,null,null,null,null,null,null,null,null,null,null,null,null,0," ",null,0]
[null,null,null,null,null,null,null,null,null,null,null,null,null,null,0," ",null,0]
[null,null,null,null,null,null,null,null,null,null,null,null,null,null,0," ",null,0]
[null,null,null,null,null,null,null,null,null,null,null,null,null,null,0," ",null,0]
[null,null,null,null,null,null,null,null,null,null,null,null,null,null,0," ",null,0]
[null,null,null,null,null,null,null,null,null,null,null,null,null,null,0," ",null,0]
[null,null,null,null,null,null,null,null,null,null,null,null,null,null,0," ",null,0]
[null,null,null,null,null,null,null,null,null,null,null,null,null,null,0," ",null,0]
[null,null,null,null,null,null,null,null,null,null,null,null,null,null,0," ",null,{"$f":"IF(Q729>0,Q729*O729,0)","v":0}]
[null,null,null,null,null,null,null,null,null,null,null,null,null,null,{"$f":"K730*L730*M730","v":0}," ",null,0]
[null,null,null,null,null,null,null,null,null,null,null,null,null,null,0," ",null,0]
[null,null,null,null,null,null,null,null,null,null,null,null,null,null,0," ",null,0]
[null,null,null,null,null,null,null,null,null,null,null,null,null,null,0," ",null,0]
[null,null,null,null,null,null,null,null,null,null,null,null,null,null,0," ",null,0]
[null,null,null,null,null,null,null,null,null,null,null,null,null,null,0," ",null,0]
[null,null,null,null,null,null,null,null,null,null,null,null,null,null,0," ",null,0]
[null,null,null,null,null,null,null,null,null,null,null,null,null,null,0," ",null,0]
[null,null,null,null,null,null,null,null,null,null,null,null,null,null,0,{"$f":"IF(ISBLANK(J738),\" \",IF(N738=\"gesamt\",(O738*(VLOOKUP(J738,$X$2:$AB$6,5))),(O738*VLOOKUP(J738,$X$2:$AB$6,3))))","v":" "},null,0]
[null,null,null,null,null,null,null,null,null,null,null,null,null,null,0," ",null,0]
[null,null,null,null,null,null,null,null,null,null,null,null,null,null,0," ",null,0]
[null,null,null,null,null,null,null,null,null,null,null,null,null,null,0," ",null,0]
[null,null,null,null,null,null,null,null,null,null,null,null,null,null,0," ",null,0]
[null,null,null,null,null,null,null,null,null,null,null,null,null,null,0," ",null,0]
[null,null,null,null,null,null,null,null,null,null,null,null,null,null,0," ",null,0]
[null,null,null,null,null,null,null,null,null,null,null,null,null,null,0," ",null,0]
[null,null,null,null,null,null,null,null,null,null,null,null,null,null,0," ",null,0]
[null,null,null,null,null,null,null,null,null,null,null,null,null,null,0," ",null,0]
[null,null,null,null,null,null,null,null,null,null,null,null,null,null,0," ",null,0]
[null,null,null,null,null,null,null,null,null,null,null,null,null,null,0," ",null,0]
[null,null,null,null,null,null,null,null,null,null,null,null,null,null,0," ",null,0]
[null,null,null,null,null,null,null,null,null,null,null,null,null,null,0," ",null,0]
[null,null,null,null,null,null,null,null,null,null,null,null,null,null,0," ",null,0]
[null,null,null,null,null,null,null,null,null,null,null,null,null,null,0," ",null,0]
[null,null,null,null,null,null,null,null,null,null,null,null,null,null,0," ",null,0]
[null,null,null,null,null,null,null,null,null,null,null,null,null,null,0," ",null,0]
[null,null,null,null,null,null,null,null,null,null,null,null,null,null,0," ",null,0]
[null,null,null,null,null,null,null,null,null,null,null,null,null,null,0," ",null,0]
[null,null,null,null,null,null,null,null,null,null,null,null,null,null,0," ",null,0]
[null,null,null,null,null,null,null,null,null,null,null,null,null,null,0," ",null,0]
[null,null,null,null,null,null,null,null,null,null,null,null,null,null,0," ",null,0]
[null,null,null,null,null,null,null,null,null,null,null,null,null,null,0," ",null,0]
[null,null,null,null,null,null,null,null,null,null,null,null,null,null,0," ",null,0]
[null,null,null,null,null,null,null,null,null,null,null,null,null,null,0," ",null,0]
[null,null,null,null,null,null,null,null,null,null,null,null,null,null,0," ",null,0]
[null,null,null,null,null,null,null,null,null,null,null,null,null,null,0," ",null,0]
[null,null,null,null,null,null,null,null,null,null,null,null,null,null,0," ",null,0]
[null,null,null,null,null,null,null,null,null,null,null,null,null,null,0," ",null,0]
[null,null,null,null,null,null,null,null,null,null,null,null,null,null,0," ",null,0]
[null,null,null,null,null,null,null,null,null,null,null,null,null,null,0," ",null,0]
[null,null,null,null,null,null,null,null,null,null,null,null,null,null,0," ",null,0]
[null,null,null,null,null,null,null,null,null,null,null,null,null,null,0," ",null,0]
[null,null,null,null,null,null,null,null,null,null,null,null,null,null,0," ",null,0]
[null,null,null,null,null,null,null,null,null,null,null,null,null,null,0," ",null,0]
[null,null,null,null,null,null,null,null,null,null,null,null,null,null,0," ",null,0]
[null,null,null,null,null,null,null,null,null,null,null,null,null,null,0," ",null,0]
[null,null,null,null,null,null,null,null,null,null,null,null,null,null,0," ",null,0]
[null,null,null,null,null,null,null,null,null,null,null,null,null,null,0," ",null,0]
[null,null,null,null,null,null,null,null,null,null,null,null,null,null,0," ",null,0]
[null,null,null,null,null,null,null,null,null,null,null,null,null,null,0," ",null,0]
[null,null,null,null,null,null,null,null,null,null,null,null,null,null,0," ",null,0]
[null,null,null,null,null,null,null,null,null,null,null,null,null,null,0," ",null,0]
[null,null,null,null,null,null,null,null,null,null,null,null,null,null,0," ",null,0]
[null,null,null,null,null,null,null,null,null,null,null,null,null,null,0," ",null,0]
[null,null,null,null,null,null,null,null,null,null,null,null,null,null,0," ",null,0]
[null,null,null,null,null,null,null,null,null,null,null,null,null,null,0," ",null,0]
[null,null,null,null,null,null,null,null,null,null,null,null,null,null,0," ",null,0]
[null,null,null,null,null,null,null,null,null,null,null,null,null,null,0," ",null,0]
[null,null,null,null,null,null,null,null,null,null,null,null,null,null,0," ",null,0]
[null,null,null,null,null,null,null,null,null,null,null,null,null,null,0," ",null,0]
[null,null,null,null,null,null,null,null,null,null,null,null,null,null,0," ",null,0]
[null,null,null,null,null,null,null,null,null,null,null,null,null,null,0," ",null,0]
[null,null,null,null,null,null,null,null,null,null,null,null,null,null,0," ",null,0]
[null,null,null,null,null,null,null,null,null,null,null,null,null,null,0," ",null,{"$f":"IF(Q793>0,Q793*O793,0)","v":0}]
[null,null,null,null,null,null,null,null,null,null,null,null,null,null,{"$f":"K794*L794*M794","v":0}," ",null,0]
[null,null,null,null,null,null,null,null,null,null,null,null,null,null,0," ",null,0]
[null,null,null,null,null,null,null,null,null,null,null,null,null,null,0," ",null,0]
[null,null,null,null,null,null,null,null,null,null,null,null,null,null,0," ",null,0]
[null,null,null,null,null,null,null,null,null,null,null,null,null,null,0," ",null,0]
[null,null,null,null,null,null,null,null,null,null,null,null,null,null,0," ",null,0]
[null,null,null,null,null,null,null,null,null,null,null,null,null,null,0," ",null,0]
[null,null,null,null,null,null,null,null,null,null,null,null,null,null,0," ",null,0]
[null,null,null,null,null,null,null,null,null,null,null,null,null,null,0,{"$f":"IF(ISBLANK(J802),\" \",IF(N802=\"gesamt\",(O802*(VLOOKUP(J802,$X$2:$AB$6,5))),(O802*VLOOKUP(J802,$X$2:$AB$6,3))))","v":" "},null,0]
[null,null,null,null,null,null,null,null,null,null,null,null,null,null,0," ",null,0]
[null,null,null,null,null,null,null,null,null,null,null,null,null,null,0," ",null,0]
[null,null,null,null,null,null,null,null,null,null,null,null,null,null,0," ",null,0]
[null,null,null,null,null,null,null,null,null,null,null,null,null,null,0," ",null,0]
[null,null,null,null,null,null,null,null,null,null,null,null,null,null,0," ",null,0]
[null,null,null,null,null,null,null,null,null,null,null,null,null,null,0," ",null,0]
[null,null,null,null,null,null,null,null,null,null,null,null,null,null,0," ",null,0]
[null,null,null,null,null,null,null,null,null,null,null,null,null,null,0," ",null,0]
[null,null,null,null,null,null,null,null,null,null,null,null,null,null,0," ",null,0]
[null,null,null,null,null,null,null,null,null,null,null,null,null,null,0," ",null,0]
[null,null,null,null,null,null,null,null,null,null,null,null,null,null,0," ",null,0]
[null,null,null,null,null,null,null,null,null,null,null,null,null,null,0," ",null,0]
[null,null,null,null,null,null,null,null,null,null,null,null,null,null,0," ",null,0]
[null,null,null,null,null,null,null,null,null,null,null,null,null,null,0," ",null,0]
[null,null,null,null,null,null,null,null,null,null,null,null,null,null,0," ",null,0]
[null,null,null,null,null,null,null,null,null,null,null,null,null,null,0," ",null,0]
[null,null,null,null,null,null,null,null,null,null,null,null,null,null,0," ",null,0]
[null,null,null,null,null,null,null,null,null,null,null,null,null,null,0," ",null,0]
[null,null,null,null,null,null,null,null,null,null,null,null,null,null,0," ",null,0]
[null,null,null,null,null,null,null,null,null,null,null,null,null,null,0," ",null,0]
[null,null,null,null,null,null,null,null,null,null,null,null,null,null,0," ",null,0]
[null,null,null,null,null,null,null,null,null,null,null,null,null,null,0," ",null,0]
[null,null,null,null,null,null,null,null,null,null,null,null,null,null,0," ",null,0]
[null,null,null,null,null,null,null,null,null,null,null,null,null,null,0," ",null,0]
[null,null,null,null,null,null,null,null,null,null,null,null,null,null,0," ",null,0]
[null,null,null,null,null,null,null,null,null,null,null,null,null,null,0," ",null,0]
[null,null,null,null,null,null,null,null,null,null,null,null,null,null,0," ",null,0]
[null,null,null,null,null,null,null,null,null,null,null,null,null,null,0," ",null,0]
[null,null,null,null,null,null,null,null,null,null,null,null,null,null,0," ",null,0]
[null,null,null,null,null,null,null,null,null,null,null,null,null,null,0," ",null,0]
[null,null,null,null,null,null,null,null,null,null,null,null,null,null,0," ",null,0]
[null,null,null,null,null,null,null,null,null,null,null,null,null,null,0," ",null,0]
[null,null,null,null,null,null,null,null,null,null,null,null,null,null,0," ",null,0]
[null,null,null,null,null,null,null,null,null,null,null,null,null,null,0," ",null,0]
[null,null,null,null,null,null,null,null,null,null,null,null,null,null,0," ",null,0]
[null,null,null,null,null,null,null,null,null,null,null,null,null,null,0," ",null,0]
[null,null,null,null,null,null,null,null,null,null,null,null,null,null,0," ",null,0]
[null,null,null,null,null,null,null,null,null,null,null,null,null,null,0," ",null,0]
[null,null,null,null,null,null,null,null,null,null,null,null,null,null,0," ",null,0]
[null,null,null,null,null,null,null,null,null,null,null,null,null,null,0," ",null,0]
[null,null,null,null,null,null,null,null,null,null,null,null,null,null,0," ",null,0]
[null,null,null,null,null,null,null,null,null,null,null,null,null,null,0," ",null,0]
[null,null,null,null,null,null,null,null,null,null,null,null,null,null,0," ",null,0]
[null,null,null,null,null,null,null,null,null,null,null,null,null,null,0," ",null,0]
[null,null,null,null,null,null,null,null,null,null,null,null,null,null,0," ",null,0]
[null,null,null,null,null,null,null,null,null,null,null,null,null,null,0," ",null,0]
[null,null,null,null,null,null,null,null,null,null,null,null,null,null,0," ",null,0]
[null,null,null,null,null,null,null,null,null,null,null,null,null,null,0," ",null,0]
[null,null,null,null,null,null,null,null,null,null,null,null,null,null,0," ",null,0]
[null,null,null,null,null,null,null,null,null,null,null,null,null,null,0," ",null,0]
[null,null,null,null,null,null,null,null,null,null,null,null,null,null,0," ",null,0]
[null,null,null,null,null,null,null,null,null,null,null,null,null,null,0," ",null,0]
[null,null,null,null,null,null,null,null,null,null,null,null,null,null,0," ",null,0]
[null,null,null,null,null,null,null,null,null,null,null,null,null,null,0," ",null,0]
[null,null,null,null,null,null,null,null,null,null,null,null,null,null,0," ",null,{"$f":"IF(Q857>0,Q857*O857,0)","v":0}]
[null,null,null,null,null,null,null,null,null,null,null,null,null,null,{"$f":"K858*L858*M858","v":0}," ",null,0]
[null,null,null,null,null,null,null,null,null,null,null,null,null,null,0," ",null,0]
[null,null,null,null,null,null,null,null,null,null,null,null,null,null,0," ",null,0]
[null,null,null,null,null,null,null,null,null,null,null,null,null,null,0," ",null,0]
[null,null,null,null,null,null,null,null,null,null,null,null,null,null,0," ",null,0]
[null,null,null,null,null,null,null,null,null,null,null,null,null,null,0," ",null,0]
[null,null,null,null,null,null,null,null,null,null,null,null,null,null,0," ",null,0]
[null,null,null,null,null,null,null,null,null,null,null,null,null,null,0," ",null,0]
[null,null,null,null,null,null,null,null,null,null,null,null,null,null,0,{"$f":"IF(ISBLANK(J866),\" \",IF(N866=\"gesamt\",(O866*(VLOOKUP(J866,$X$2:$AB$6,5))),(O866*VLOOKUP(J866,$X$2:$AB$6,3))))","v":" "},null,0]
[null,null,null,null,null,null,null,null,null,null,null,null,null,null,0," ",null,0]
[null,null,null,null,null,null,null,null,null,null,null,null,null,null,0," ",null,0]
[null,null,null,null,null,null,null,null,null,null,null,null,null,null,0," ",null,0]
[null,null,null,null,null,null,null,null,null,null,null,null,null,null,0," ",null,0]
[null,null,null,null,null,null,null,null,null,null,null,null,null,null,0," ",null,0]
[null,null,null,null,null,null,null,null,null,null,null,null,null,null,0," ",null,0]
[null,null,null,null,null,null,null,null,null,null,null,null,null,null,0," ",null,0]
[null,null,null,null,null,null,null,null,null,null,null,null,null,null,0," ",null,0]
[null,null,null,null,null,null,null,null,null,null,null,null,null,null,0," ",null,0]
[null,null,null,null,null,null,null,null,null,null,null,null,null,null,0," ",null,0]
[null,null,null,null,null,null,null,null,null,null,null,null,null,null,0," ",null,0]
[null,null,null,null,null,null,null,null,null,null,null,null,null,null,0," ",null,0]
[null,null,null,null,null,null,null,null,null,null,null,null,null,null,0," ",null,0]
[null,null,null,null,null,null,null,null,null,null,null,null,null,null,0," ",null,0]
[null,null,null,null,null,null,null,null,null,null,null,null,null,null,0," ",null,0]
[null,null,null,null,null,null,null,null,null,null,null,null,null,null,0," ",null,0]
[null,null,null,null,null,null,null,null,null,null,null,null,null,null,0," ",null,0]
[null,null,null,null,null,null,null,null,null,null,null,null,null,null,0," ",null,0]
[null,null,null,null,null,null,null,null,null,null,null,null,null,null,0," ",null,0]
[null,null,null,null,null,null,null,null,null,null,null,null,null,null,0," ",null,0]
[null,null,null,null,null,null,null,null,null,null,null,null,null,null,0," ",null,0]
[null,null,null,null,null,null,null,null,null,null,null,null,null,null,0," ",null,0]
[null,null,null,null,null,null,null,null,null,null,null,null,null,null,0," ",null,0]
[null,null,null,null,null,null,null,null,null,null,null,null,null,null,0," ",null,0]
[null,null,null,null,null,null,null,null,null,null,null,null,null,null,0," ",null,0]
[null,null,null,null,null,null,null,null,null,null,null,null,null,null,0," ",null,0]
[null,null,null,null,null,null,null,null,null,null,null,null,null,null,0," ",null,0]
[null,null,null,null,null,null,null,null,null,null,null,null,null,null,0," ",null,0]
[null,null,null,null,null,null,null,null,null,null,null,null,null,null,0," ",null,0]
[null,null,null,null,null,null,null,null,null,null,null,null,null,null,0," ",null,0]
[null,null,null,null,null,null,null,null,null,null,null,null,null,null,0," ",null,0]
[null,null,null,null,null,null,null,null,null,null,null,null,null,null,0," ",null,0]
[null,null,null,null,null,null,null,null,null,null,null,null,null,null,0," ",null,0]
[null,null,null,null,null,null,null,null,null,null,null,null,null,null,0," ",null,0]
[null,null,null,null,null,null,null,null,null,null,null,null,null,null,0," ",null,0]
[null,null,null,null,null,null,null,null,null,null,null,null,null,null,0," ",null,0]
[null,null,null,null,null,null,null,null,null,null,null,null,null,null,0," ",null,0]
[null,null,null,null,null,null,null,null,null,null,null,null,null,null,0," ",null,0]
[null,null,null,null,null,null,null,null,null,null,null,null,null,null,0," ",null,0]
[null,null,null,null,null,null,null,null,null,null,null,null,null,null,0," ",null,0]
[null,null,null,null,null,null,null,null,null,null,null,null,null,null,0," ",null,0]
[null,null,null,null,null,null,null,null,null,null,null,null,null,null,0," ",null,0]
[null,null,null,null,null,null,null,null,null,null,null,null,null,null,0," ",null,0]
[null,null,null,null,null,null,null,null,null,null,null,null,null,null,0," ",null,0]
[null,null,null,null,null,null,null,null,null,null,null,null,null,null,0," ",null,0]
[null,null,null,null,null,null,null,null,null,null,null,null,null,null,0," ",null,0]
[null,null,null,null,null,null,null,null,null,null,null,null,null,null,0," ",null,0]
[]
[]
[]
[]
[]
[]
[]
[]
[]
[]
[]
[]
[]
[]
[]
[]
[]
[]
[]
[]
[]
[]
[]
[]
[]
[]
[]
[]
[]
[]
[]
[]
[]
[]
[]
[]
[]
[]
[]
[]
[]
[]
[]
[]
[]
[]
[]
[]
[null,null,null,null,"1 - Büros, Besprechungszimmer, Klassenzimmer, Unterrichtsräume/Sonderunterrichtsräume und EDV-Räume mit festen Gestühl/Stationsstützpunkt",null,null,"PVC"]
[null,null,null,null,"2 - Toiletten, Duschen, Stationsbad",null,null,"Linoleum"]
[null,null,null,null,"3 - Aufzüge",null,null,"Kautschuk"]
[null,null,null,null,"4 - Teeküchen",null,null,"Steinboden"]
[null,null,null,null,"5 - Eingangsbereiche, Fitness-, Werkstätten- und Produktionsbereiche",null,null,"Steinboden kalkhältig"]
[null,null,null,null,"6 - Stiegenhäuser",null,null,"Keramische Fliesen und Platten"]
[null,null,null,null,"7 - Stiegenhäuser in Wohnhäusern inkl. Gänge",null,null,"Parkett versiegelt"]
[null,null,null,null,"8 - Gehwegreinigung und Grünflächenreinigung in Außenanlagen",null,null,"Parkett geölt/gewachst"]
[null,null,null,null,"9 - Keller, Archive, Lager",null,null,"Laminat"]
[null,null,null,null,"10 - Festsäle, Haustechnik-Bereiche",null,null,"Teppich"]
[null,null,null,null,"11 - Behandlungsbereiche/Ambulanzen, Untersuchungs- und Behandlungsräume, medinzinische/medizintechnische Arbeitsräume, Pflegearbeitsräume",null,null,"Estrich/Asphaltböden"]
[null,null,null,null,"12 - Patientenzimmer (Stationsbereich) ohne Nasszellen",null,null,"Sonstige"]
[null,null,null,null,"13 - OP-Bereich"]
[null,null,null,null,"14 - Intensivbereich"]
[null,null,null,null,"15 - Labore/medizinische Laboratorien"]
[null,null,null,null,"16 - Wellnessbereiche"]
[null,null,null,null,"17 - Schwimmbad"]
[null,null,null,null,"18 - Großküchenbereiche/Küchen"]
[null,null,null,null,"19 - Gänge, Sport- und Mehrzweckbereiche"]
[null,null,null,null,"20 - Speiseräume, Gruppenräume, Kindergarten, Kantine, Aufenthaltsräume"]
[null,null,null,null,"21 - Garderoben Umkleide- und Mannschaftsräume"]
[null,null,null,null,"22 - Bibliotheken"]
[null,null,null,null,"23 - Hotelzimmer, Bewohnerzimmer, Appartementzimmer\nund Gästezimmer mit Nassräumen"]
[null,null,null,null,"24 - Verkehrsmittel Langstrecke (zB Flugzeug, Reisezug, Reisebus)"]
[null,null,null,null,"25 - Verkehrsmittel Kurzstrecke (zB U-Bahn, Straßenbahn, Linienbus)"]
[null,null,null,null,"26 - Verkaufsflächen"]
[null,null,null,null,"27 - Flughafen, Bahnhöfe, Einkaufszentren, oder sonstige automatengeeignete Bodenflächen"]
[null,null,null,null,"28 - Sonstige Flächen 1"]
[null,null,null,null,"29 - Sonstige Flächen 2"]
[null,null,null,null,"30 - Sonstige Flächen 3"]
[null,null,null,null,"31 - Sonstige Flächen 4"]
[null,null,null,null,"32 - Sonstige Flächen 5"]

{"sheet":"2. Stundenberechnung UHR","index":2,"n_rows":37,"n_cols":35,"rows_kept":37,"cut":false,"hidden":false,"merged":[[22,0,22,1],[0,0,1,34]]}
["Stundenkalkulation Unterhaltsreinigung"]
[]
[null,"Pivottabelle","1 - Büros, Besprechungszimmer, Klassenzimmer, Unterrichtsräume/Sonderunterrichtsräume und EDV-Räume mit festen Gestühl/Stationsstützpunkt","2 - Toiletten, Duschen, Stationsbad","3 - Aufzüge","4 - Teeküchen","5 - Eingangsbereiche, Fitness-, Werkstätten- und Produktionsbereiche","6 - Stiegenhäuser","7 - Stiegenhäuser in Wohnhäusern inkl. Gänge","8 - Gehwegreinigung und Grünflächenreinigung in Außenanlagen","9 - Keller, Archive, Lager","10 - Festsäle, Haustechnik-Bereiche","11 - Behandlungsbereiche/Ambulanzen, Untersuchungs- und Behandlungsräume, medinzinische/medizintechnische Arbeitsräume, Pflegearbeitsräume","12 - Patientenzimmer (Stationsbereich) ohne Nasszellen","13 - OP-Bereich","14 - Intensivbereich","15 - Labore/medizinische Laboratorien","16 - Wellnessbereiche","17 - Schwimmbad","18 - Großküchenbereiche/Küchen","19 - Gänge, Sport- und Mehrzweckbereiche","20 - Speiseräume, Gruppenräume, Kindergarten, Kantine, Aufenthaltsräume","21 - Garderoben Umkleide- und Mannschaftsräume","22 - Bibliotheken","23 - Hotelzimmer, Bewohnerzimmer, Appartementzimmer\nund Gästezimmer mit Nassräumen","24 - Verkehrsmittel Langstrecke (zB Flugzeug, Reisezug, Reisebus)","25 - Verkehrsmittel Kurzstrecke (zB U-Bahn, Straßenbahn, Linienbus)","26 - Verkaufsflächen","27 - Flughafen, Bahnhöfe, Einkaufszentren, oder sonstige automatengeeignete Bodenflächen","28 - Sonstige Flächen 1","29 - Sonstige Flächen 2","30 - Sonstige Flächen 3","31 - Sonstige Flächen 4","32 - Sonstige Flächen 5","Gesamtergebnis"]
["Summe von Raum-"]
["Objekt",null,{"$f":"C3","v":"1 - Büros, Besprechungszimmer, Klassenzimmer, Unterrichtsräume/Sonderunterrichtsräume und EDV-Räume mit festen Gestühl/Stationsstützpunkt"},{"$f":"D3","v":"2 - Toiletten, Duschen, Stationsbad"},"3 - Aufzüge","4 - Teeküchen","5 - Eingangsbereiche, Fitness-, Werkstätten- und Produktionsbereiche","6 - Stiegenhäuser","7 - Stiegenhäuser in Wohnhäusern inkl. Gänge","8 - Gehwegreinigung und Grünflächenreinigung in Außenanlagen","9 - Keller, Archive, Lager","10 - Festsäle, Haustechnik-Bereiche","11 - Behandlungsbereiche/Ambulanzen, Untersuchungs- und Behandlungsräume, medinzinische/medizintechnische Arbeitsräume, Pflegearbeitsräume","12 - Patientenzimmer (Stationsbereich) ohne Nasszellen","13 - OP-Bereich","14 - Intensivbereich","15 - Labore/medizinische Laboratorien","16 - Wellnessbereiche","17 - Schwimmbad","18 - Großküchenbereiche/Küchen","19 - Gänge, Sport- und Mehrzweckbereiche","20 - Speiseräume, Gruppenräume, Kindergarten, Kantine, Aufenthaltsräume","21 - Garderoben Umkleide- und Mannschaftsräume","22 - Bibliotheken","23 - Hotelzimmer, Bewohnerzimmer, Appartementzimmer\nund Gästezimmer mit Nassräumen","24 - Verkehrsmittel Langstrecke (zB Flugzeug, Reisezug, Reisebus)","25 - Verkehrsmittel Kurzstrecke (zB U-Bahn, Straßenbahn, Linienbus)","26 - Verkaufsflächen","27 - Flughafen, Bahnhöfe, Einkaufszentren, oder sonstige automatengeeignete Bodenflächen","28 - Sonstige Flächen 1","29 - Sonstige Flächen 2","30 - Sonstige Flächen 3","31 - Sonstige Flächen 4",{"$f":"AH3","v":"32 - Sonstige Flächen 5"},"Gesamtergebnis"]
[null,"m²-Angaben",{"$f":"GETPIVOTDATA(\"Raum-\nflächen\nin m2\",$A$3,\"Flächendefinition\",\"1 - Büros, Besprechungszimmer, Klassenzimmer, Unterrichtsräume/Sonderunterrichtsräume und EDV-Räume mit festen Gestühl/Stationsstützpunkt\")","v":0},{"$f":"GETPIVOTDATA(\"Raum-\nflächen\nin m2\",$A$3,\"Flächendefinition\",\"2 - Toiletten, Duschen, Stationsbad\")","v":0},{"$f":"GETPIVOTDATA(\"Raum-\nflächen\nin m2\",$A$3,\"Flächendefinition\",\"3 - Aufzüge\")","v":0},{"$f":"GETPIVOTDATA(\"Raum-\nflächen\nin m2\",$A$3,\"Flächendefinition\",\"4 - Teeküchen\")","v":0},{"$f":"GETPIVOTDATA(\"Raum-\nflächen\nin m2\",$A$3,\"Flächendefinition\",\"5 - Eingangsbereiche, Fitness-, Werkstätten- und Produktionsbereiche\")","v":0},{"$f":"GETPIVOTDATA(\"Raum-\nflächen\nin m2\",$A$3,\"Flächendefinition\",\"6 - Stiegenhäuser\")","v":0},{"$f":"GETPIVOTDATA(\"Raum-\nflächen\nin m2\",$A$3,\"Flächendefinition\",\"7 - Stiegenhäuser in Wohnhäusern inkl. Gänge\")","v":0},{"$f":"GETPIVOTDATA(\"Raum-\nflächen\nin m2\",$A$3,\"Flächendefinition\",\"8 - Gehwegreinigung und Grünflächenreinigung in Außenanlagen\")","v":0},{"$f":"GETPIVOTDATA(\"Raum-\nflächen\nin m2\",$A$3,\"Flächendefinition\",\"9 - Keller, Archive, Lager\")","v":0},{"$f":"GETPIVOTDATA(\"Raum-\nflächen\nin m2\",$A$3,\"Flächendefinition\",\"10 - Festsäle, Haustechnik-Bereiche\")","v":0},{"$f":"GETPIVOTDATA(\"Raum-\nflächen\nin m2\",$A$3,\"Flächendefinition\",\"11 - Behandlungsbereiche/Ambulanzen, Untersuchungs- und Behandlungsräume, medinzinische/medizintechnische Arbeitsräume, Pflegearbeitsräume\")","v":0},{"$f":"GETPIVOTDATA(\"Raum-\nflächen\nin m2\",$A$3,\"Flächendefinition\",\"12 - Patientenzimmer (Stationsbereich) ohne Nasszellen\")","v":0},{"$f":"GETPIVOTDATA(\"Raum-\nflächen\nin m2\",$A$3,\"Flächendefinition\",\"13 - OP-Bereich\")","v":0},{"$f":"GETPIVOTDATA(\"Raum-\nflächen\nin m2\",$A$3,\"Flächendefinition\",\"14 - Intensivbereich\")","v":0},{"$f":"GETPIVOTDATA(\"Raum-\nflächen\nin m2\",$A$3,\"Flächendefinition\",\"15 - Labore/medizinische Laboratorien\")","v":0},{"$f":"GETPIVOTDATA(\"Raum-\nflächen\nin m2\",$A$3,\"Flächendefinition\",\"16 - Wellnessbereiche\")","v":0},{"$f":"GETPIVOTDATA(\"Raum-\nflächen\nin m2\",$A$3,\"Flächendefinition\",\"17 - Schwimmbad\")","v":0},{"$f":"GETPIVOTDATA(\"Raum-\nflächen\nin m2\",$A$3,\"Flächendefinition\",\"18 - Großküchenbereiche/Küchen\")","v":0},{"$f":"GETPIVOTDATA(\"Raum-\nflächen\nin m2\",$A$3,\"Flächendefinition\",\"19 - Gänge, Sport- und Mehrzweckbereiche\")","v":0},{"$f":"GETPIVOTDATA(\"Raum-\nflächen\nin m2\",$A$3,\"Flächendefinition\",\"20 - Speiseräume, Gruppenräume, Kindergarten, Kantine, Aufenthaltsräume\")","v":0},{"$f":"GETPIVOTDATA(\"Raum-\nflächen\nin m2\",$A$3,\"Flächendefinition\",\"21 - Garderoben Umkleide- und Mannschaftsräume\")","v":0},{"$f":"GETPIVOTDATA(\"Raum-\nflächen\nin m2\",$A$3,\"Flächendefinition\",\"22 - Bibliotheken\")","v":0},{"$f":"GETPIVOTDATA(\"Raum-\nflächen\nin m2\",$A$3,\"Flächendefinition\",\"23 - Hotelzimmer, Bewohnerzimmer, Appartementzimmer\nund Gästezimmer mit Nassräumen\")","v":0},{"$f":"GETPIVOTDATA(\"Raum-\nflächen\nin m2\",$A$3,\"Flächendefinition\",\"24 - Verkehrsmittel Langstrecke (zB Flugzeug, Reisezug, Reisebus)\")","v":0},{"$f":"GETPIVOTDATA(\"Raum-\nflächen\nin m2\",$A$3,\"Flächendefinition\",\"25 - Verkehrsmittel Kurzstrecke (zB U-Bahn, Straßenbahn, Linienbus)\")","v":0},{"$f":"GETPIVOTDATA(\"Raum-\nflächen\nin m2\",$A$3,\"Flächendefinition\",\"26 - Verkaufsflächen\")","v":0},{"$f":"GETPIVOTDATA(\"Raum-\nflächen\nin m2\",$A$3,\"Flächendefinition\",\"27 - Flughafen, Bahnhöfe, Einkaufszentren, oder sonstige automatengeeignete Bodenflächen\")","v":0},{"$f":"GETPIVOTDATA(\"Raum-\nflächen\nin m2\",$A$3,\"Flächendefinition\",\"28 - Sonstige Flächen 1\")","v":0},{"$f":"GETPIVOTDATA(\"Raum-\nflächen\nin m2\",$A$3,\"Flächendefinition\",\"29 - Sonstige Flächen 2\")","v":0},{"$f":"GETPIVOTDATA(\"Raum-\nflächen\nin m2\",$A$3,\"Flächendefinition\",\"30 - Sonstige Flächen 3\")","v":0},{"$f":"GETPIVOTDATA(\"Raum-\nflächen\nin m2\",$A$3,\"Flächendefinition\",\"31 - Sonstige Flächen 4\")","v":0},{"$f":"GETPIVOTDATA(\"Raum-\nflächen\nin m2\",$A$3,\"Flächendefinition\",\"32 - Sonstige Flächen 5\")","v":0},{"$f":"GETPIVOTDATA(\"Raum-\nflächen\nin m2\",$A$3)","v":0}]
["Leistung Vollreinigung - m² pro Stunde","Werte gem. Ö-Norm D 2050",180,60,30,110,200,140,65,850,250,250,130,160,20,110,160,100,130,100,300,170,200,200,60,50,50,350,10,10,10,10,10,10]
["Wie oft wird eine Vollreinigung durchgeführt","mittels Dropdownfeld auswählen"]
["Intervall Vollreinigung - Tage pro Monat","wird automatisch bei Auswahl des Intervalls angezeigt",{"$f":"VLOOKUP(C8,$A$25:B37,2,FALSE)","v":0},{"$f":"VLOOKUP(D8,$A$25:C37,2,FALSE)","v":0},{"$f":"VLOOKUP(E8,$A$25:D37,2,FALSE)","v":0},{"$f":"VLOOKUP(F8,$A$25:E37,2,FALSE)","v":0},{"$f":"VLOOKUP(G8,$A$25:F37,2,FALSE)","v":0},{"$f":"VLOOKUP(H8,$A$25:G37,2,FALSE)","v":0},{"$f":"VLOOKUP(I8,$A$25:H37,2,FALSE)","v":0},{"$f":"VLOOKUP(J8,$A$25:I37,2,FALSE)","v":0},{"$f":"VLOOKUP(K8,$A$25:J37,2,FALSE)","v":0},{"$f":"VLOOKUP(L8,$A$25:K37,2,FALSE)","v":0},{"$f":"VLOOKUP(M8,$A$25:L37,2,FALSE)","v":0},{"$f":"VLOOKUP(N8,$A$25:M37,2,FALSE)","v":0},{"$f":"VLOOKUP(O8,$A$25:N37,2,FALSE)","v":0},{"$f":"VLOOKUP(P8,$A$25:O37,2,FALSE)","v":0},{"$f":"VLOOKUP(Q8,$A$25:P37,2,FALSE)","v":0},{"$f":"VLOOKUP(R8,$A$25:Q37,2,FALSE)","v":0},{"$f":"VLOOKUP(S8,$A$25:R37,2,FALSE)","v":0},{"$f":"VLOOKUP(T8,$A$25:S37,2,FALSE)","v":0},{"$f":"VLOOKUP(U8,$A$25:T37,2,FALSE)","v":0},{"$f":"VLOOKUP(V8,$A$25:U37,2,FALSE)","v":0},{"$f":"VLOOKUP(W8,$A$25:V37,2,FALSE)","v":0},{"$f":"VLOOKUP(X8,$A$25:W37,2,FALSE)","v":0},{"$f":"VLOOKUP(Y8,$A$25:X37,2,FALSE)","v":0},{"$f":"VLOOKUP(Z8,$A$25:Y37,2,FALSE)","v":0},{"$f":"VLOOKUP(AA8,$A$25:Z37,2,FALSE)","v":0},{"$f":"VLOOKUP(AB8,$A$25:AA37,2,FALSE)","v":0},{"$f":"VLOOKUP(AC8,$A$25:AB37,2,FALSE)","v":0},{"$f":"VLOOKUP(AD8,$A$25:AC37,2,FALSE)","v":0},{"$f":"VLOOKUP(AE8,$A$25:AD37,2,FALSE)","v":0},{"$f":"VLOOKUP(AF8,$A$25:AE37,2,FALSE)","v":0},{"$f":"VLOOKUP(AG8,$A$25:AF37,2,FALSE)","v":0},{"$f":"VLOOKUP(AH8,$A$25:AG37,2,FALSE)","v":0}]
["Zwischensumme  Std. Hauptreinigung",null,{"$f":"IF(ISBLANK(C7),0,(C6*C9/C7))","v":0},{"$f":"IF(ISBLANK(D7),0,(D6*D9/D7))","v":0},0,0,0,0,0,0,0,0,0,0,0,0,0,0,0,0,0,0,0,0,0,0,0,0,0,0,0,0,0,{"$f":"IF(ISBLANK(AH7),0,(AH6*AH9/AH7))","v":0}]
["Leistung Teilreinigung - m² per Stunde","Werte gem. Ö-Norm D 2050",250,90,45,170,300,200,140,1000,300,400,220,200,40,130,220,130,180,160,500,250,270,350,90,80,200,450,10,10,10,10,10,10]
["Wie oft wird eine Teilreinigung durchgeführt","mittels Dropdownfeld auswählen"]
["Intervall Teilreinigung - Tage per Monat","wird automatisch bei Auswahl des Intervalls angezeigt",{"$f":"VLOOKUP(C12,$A$25:B41,2,FALSE)","v":0},{"$f":"VLOOKUP(D12,$A$25:C41,2,FALSE)","v":0},{"$f":"VLOOKUP(E12,$A$25:D41,2,FALSE)","v":0},{"$f":"VLOOKUP(F12,$A$25:E41,2,FALSE)","v":0},{"$f":"VLOOKUP(G12,$A$25:F41,2,FALSE)","v":0},{"$f":"VLOOKUP(H12,$A$25:G41,2,FALSE)","v":0},{"$f":"VLOOKUP(I12,$A$25:H41,2,FALSE)","v":0},{"$f":"VLOOKUP(J12,$A$25:I41,2,FALSE)","v":0},{"$f":"VLOOKUP(K12,$A$25:J41,2,FALSE)","v":0},{"$f":"VLOOKUP(L12,$A$25:K41,2,FALSE)","v":0},{"$f":"VLOOKUP(M12,$A$25:L41,2,FALSE)","v":0},{"$f":"VLOOKUP(N12,$A$25:M41,2,FALSE)","v":0},{"$f":"VLOOKUP(O12,$A$25:N41,2,FALSE)","v":0},{"$f":"VLOOKUP(P12,$A$25:O41,2,FALSE)","v":0},{"$f":"VLOOKUP(Q12,$A$25:P41,2,FALSE)","v":0},{"$f":"VLOOKUP(R12,$A$25:Q41,2,FALSE)","v":0},{"$f":"VLOOKUP(S12,$A$25:R41,2,FALSE)","v":0},{"$f":"VLOOKUP(T12,$A$25:S41,2,FALSE)","v":0},{"$f":"VLOOKUP(U12,$A$25:T41,2,FALSE)","v":0},{"$f":"VLOOKUP(V12,$A$25:U41,2,FALSE)","v":0},{"$f":"VLOOKUP(W12,$A$25:V41,2,FALSE)","v":0},{"$f":"VLOOKUP(X12,$A$25:W41,2,FALSE)","v":0},{"$f":"VLOOKUP(Y12,$A$25:X41,2,FALSE)","v":0},{"$f":"VLOOKUP(Z12,$A$25:Y41,2,FALSE)","v":0},{"$f":"VLOOKUP(AA12,$A$25:Z41,2,FALSE)","v":0},{"$f":"VLOOKUP(AB12,$A$25:AA41,2,FALSE)","v":0},{"$f":"VLOOKUP(AC12,$A$25:AB41,2,FALSE)","v":0},{"$f":"VLOOKUP(AD12,$A$25:AC41,2,FALSE)","v":0},{"$f":"VLOOKUP(AE12,$A$25:AD41,2,FALSE)","v":0},{"$f":"VLOOKUP(AF12,$A$25:AE41,2,FALSE)","v":0},{"$f":"VLOOKUP(AG12,$A$25:AF41,2,FALSE)","v":0},{"$f":"VLOOKUP(AH12,$A$25:AG41,2,FALSE)","v":0}]
["Zwischensumme  Std. Sichtreinigung",null,{"$f":"IF(ISBLANK(C11),0,(C6*C13/C11))","v":0},{"$f":"IF(ISBLANK(D11),0,(D6*D13/D11))","v":0},0,0,0,0,0,0,0,0,0,0,0,0,0,0,0,0,0,0,0,0,0,0,0,0,0,0,0,0,0,{"$f":"IF(ISBLANK(AH11),0,(AH6*AH13/AH11))","v":0}]
["Leistung Sichtreinigung - m² per Stunde","Werte gem. Ö-Norm D 2050",450,120,60,250,500,300,200,1300,600,600,330,300,null,200,330,240,300,220,700,350,350,500,170,150,400,550,10,10,10,10,10,10]
["Wie oft wird eine Sichtreinigung durchgeführt","mittels Dropdownfeld auswählen"]
["Intervall Sichtreinigung - Tage per Monat","wird automatisch bei Auswahl des Intervalls angezeigt",{"$f":"VLOOKUP(C16,$A$25:B45,2,FALSE)","v":0},{"$f":"VLOOKUP(D16,$A$25:C45,2,FALSE)","v":0},{"$f":"VLOOKUP(E16,$A$25:D45,2,FALSE)","v":0},{"$f":"VLOOKUP(F16,$A$25:E45,2,FALSE)","v":0},{"$f":"VLOOKUP(G16,$A$25:F45,2,FALSE)","v":0},{"$f":"VLOOKUP(H16,$A$25:G45,2,FALSE)","v":0},{"$f":"VLOOKUP(I16,$A$25:H45,2,FALSE)","v":0},{"$f":"VLOOKUP(J16,$A$25:I45,2,FALSE)","v":0},{"$f":"VLOOKUP(K16,$A$25:J45,2,FALSE)","v":0},{"$f":"VLOOKUP(L16,$A$25:K45,2,FALSE)","v":0},{"$f":"VLOOKUP(M16,$A$25:L45,2,FALSE)","v":0},{"$f":"VLOOKUP(N16,$A$25:M45,2,FALSE)","v":0},{"$f":"VLOOKUP(O16,$A$25:N45,2,FALSE)","v":0},{"$f":"VLOOKUP(P16,$A$25:O45,2,FALSE)","v":0},{"$f":"VLOOKUP(Q16,$A$25:P45,2,FALSE)","v":0},{"$f":"VLOOKUP(R16,$A$25:Q45,2,FALSE)","v":0},{"$f":"VLOOKUP(S16,$A$25:R45,2,FALSE)","v":0},{"$f":"VLOOKUP(T16,$A$25:S45,2,FALSE)","v":0},{"$f":"VLOOKUP(U16,$A$25:T45,2,FALSE)","v":0},{"$f":"VLOOKUP(V16,$A$25:U45,2,FALSE)","v":0},{"$f":"VLOOKUP(W16,$A$25:V45,2,FALSE)","v":0},{"$f":"VLOOKUP(X16,$A$25:W45,2,FALSE)","v":0},{"$f":"VLOOKUP(Y16,$A$25:X45,2,FALSE)","v":0},{"$f":"VLOOKUP(Z16,$A$25:Y45,2,FALSE)","v":0},{"$f":"VLOOKUP(AA16,$A$25:Z45,2,FALSE)","v":0},{"$f":"VLOOKUP(AB16,$A$25:AA45,2,FALSE)","v":0},{"$f":"VLOOKUP(AC16,$A$25:AB45,2,FALSE)","v":0},{"$f":"VLOOKUP(AD16,$A$25:AC45,2,FALSE)","v":0},{"$f":"VLOOKUP(AE16,$A$25:AD45,2,FALSE)","v":0},{"$f":"VLOOKUP(AF16,$A$25:AE45,2,FALSE)","v":0},{"$f":"VLOOKUP(AG16,$A$25:AF45,2,FALSE)","v":0},{"$f":"VLOOKUP(AH16,$A$25:AG45,2,FALSE)","v":0}]
["Zwischensumme  Std. Sichtreinigung",null,{"$f":"IF(ISBLANK(C15),0,(C6*C17/C15))","v":0},{"$f":"IF(ISBLANK(D15),0,(D6*D17/D15))","v":0},0,0,0,0,0,0,0,0,0,0,0,0,0,0,0,0,0,0,0,0,0,0,0,0,0,0,0,{"$f":"IF(ISBLANK(AF15),0,(AF6*AF17/AF15))","v":0},0,{"$f":"IF(ISBLANK(AH15),0,(AH6*AH17/AH15))","v":0}]
["Stunden per Monat",{"$f":"SUM(C19:AE19)","v":0},{"$f":"IF(ISBLANK(#REF!),\"0\",C10+C14+C18)","v":0},{"$f":"IF(ISBLANK(#REF!),\"0\",D10+D14+D18)","v":0},{"$f":"IF(ISBLANK(#REF!),\"0\",E10+E14+E18)","v":0},{"$f":"IF(ISBLANK(#REF!),\"0\",F10+F14+F18)","v":0},{"$f":"IF(ISBLANK(#REF!),\"0\",G10+G14+G18)","v":0},{"$f":"IF(ISBLANK(#REF!),\"0\",H10+H14+H18)","v":0},{"$f":"IF(ISBLANK(#REF!),\"0\",I10+I14+I18)","v":0},{"$f":"IF(ISBLANK(#REF!),\"0\",J10+J14+J18)","v":0},{"$f":"IF(ISBLANK(#REF!),\"0\",K10+K14+K18)","v":0},{"$f":"IF(ISBLANK(#REF!),\"0\",L10+L14+L18)","v":0},{"$f":"IF(ISBLANK(#REF!),\"0\",M10+M14+M18)","v":0},{"$f":"IF(ISBLANK(#REF!),\"0\",N10+N14+N18)","v":0},{"$f":"IF(ISBLANK(#REF!),\"0\",O10+O14+O18)","v":0},{"$f":"IF(ISBLANK(#REF!),\"0\",P10+P14+P18)","v":0},{"$f":"IF(ISBLANK(#REF!),\"0\",Q10+Q14+Q18)","v":0},{"$f":"IF(ISBLANK(#REF!),\"0\",R10+R14+R18)","v":0},{"$f":"IF(ISBLANK(#REF!),\"0\",S10+S14+S18)","v":0},{"$f":"IF(ISBLANK(#REF!),\"0\",T10+T14+T18)","v":0},{"$f":"IF(ISBLANK(#REF!),\"0\",U10+U14+U18)","v":0},{"$f":"IF(ISBLANK(#REF!),\"0\",V10+V14+V18)","v":0},{"$f":"IF(ISBLANK(#REF!),\"0\",W10+W14+W18)","v":0},{"$f":"IF(ISBLANK(#REF!),\"0\",X10+X14+X18)","v":0},{"$f":"IF(ISBLANK(#REF!),\"0\",Y10+Y14+Y18)","v":0},{"$f":"IF(ISBLANK(#REF!),\"0\",Z10+Z14+Z18)","v":0},{"$f":"IF(ISBLANK(#REF!),\"0\",AA10+AA14+AA18)","v":0},{"$f":"IF(ISBLANK(#REF!),\"0\",AB10+AB14+AB18)","v":0},{"$f":"IF(ISBLANK(#REF!),\"0\",AC10+AC14+AC18)","v":0},{"$f":"IF(ISBLANK(#REF!),\"0\",AD10+AD14+AD18)","v":0},{"$f":"IF(ISBLANK(#REF!),\"0\",AE10+AE14+AE18)","v":0},{"$f":"IF(ISBLANK(#REF!),\"0\",AF10+AF14+AF18)","v":0},{"$f":"IF(ISBLANK(#REF!),\"0\",AG10+AG14+AG18)","v":0},{"$f":"IF(ISBLANK(#REF!),\"0\",AH10+AH14+AH18)","v":0}]
["Durchschnittsstunden pro Tag",{"$f":"B19/21.65","v":0},{"$f":"IF(C19=0,0,C19/(MAX(C9,C13,C17)))","v":0},0,{"$f":"IF(E19=0,0,E19/(MAX(E9,E13,E17)))","v":0},{"$f":"IF(F19=0,0,F19/(MAX(F9,F13,F17)))","v":0},0,0,0,0,0,0,0,0,0,0,0,0,0,0,0,0,0,0,0,0,0,0,0,0,0,{"$f":"IF(AF19=0,0,AF19/(MAX(AF9,AF13,AF17)))","v":0},0,{"$f":"IF(AH19=0,0,AH19/(MAX(AH9,AH13,AH17)))","v":0}]
["Durchschnittsstunden pro Woche",{"$f":"B19/4.35","v":0}]
[]
["Reinigungstage pro Jahr"]
["LV","Tage pro Monat"]
["7 x wtl. (inkl. Sonn- u. Feiertage)",30.4375]
["6 x wtl. (inkl. Samstag ohne Feiertage)",26.089285714285715]
["5 x wtl.",21.75]
["4 x wtl.",17.32]
["3 x wtl.",12.99]
["2 x wtl.",8.6999999999999993]
["1 x wtl. ",4.3499999999999996]
["2 x mtl. ",2]
["1 x mtl. ",1]
["4 x jährlich",0.33333333333333331]
["2 x jährlich",0.16666666666666666]
["1 x jährlich",8.3333333333333329E-2]
[0,0]

{"sheet":"2. Einteilung Mitarbeiter UHR","index":3,"n_rows":26,"n_cols":12,"rows_kept":26,"cut":false,"hidden":false,"merged":[[0,0,0,11],[1,4,3,10]]}
["Einsatzplan UHR"]
["Wochenplanung","Wochenstunden","Organisationszeiten\npro Woche","Std. Ges","Einteilung der Wochenstunden",null,null,null,null,null,null,"Std. Ges"]
[null,"Stunden"]
[]
["kalkulatorische Std / Woche",{"$f":"'2. Stundenberechnung UHR'!B21","v":0},null,{"$f":"B5+C5","v":0},"Montag","Dienstag","Mittwoch","Donnerstag","Freitag","Samstag","Sonntag",{"$f":"SUM(B5:B5)","v":0}]
["Stundenrundung lt KV pro Woche",null,null,{"$f":"B6+C6","v":0},null,null,null,null,null,null,null,{"$f":"SUM(B6:B6)","v":0}]
["Mitarbeiterliste"]
[null,null,null,{"$f":"B8+C8","v":0},null,null,null,null,null,null,null,{"$f":"SUM(E8:K8)","v":0}]
[null,null,null,{"$f":"B9+C9","v":0},null,null,null,null,null,null,null,{"$f":"SUM(E9:K9)","v":0}]
[null,null,null,0,null,null,null,null,null,null,null,0]
[null,null,null,0,null,null,null,null,null,null,null,0]
[null,null,null,0,null,null,null,null,null,null,null,0]
[null,null,null,0,null,null,null,null,null,null,null,0]
[null,null,null,0,null,null,null,null,null,null,null,0]
[null,null,null,0,null,null,null,null,null,null,null,0]
[null,null,null,0,null,null,null,null,null,null,null,0]
[null,null,null,0,null,null,null,null,null,null,null,0]
[null,null,null,0,null,null,null,null,null,null,null,0]
[null,null,null,0,null,null,null,null,null,null,null,0]
[null,null,null,0,null,null,null,null,null,null,null,0]
["Kontrollsumme Wochenstunden lt. Einsatzplan",{"$f":"SUM(B8:B20)","v":0},{"$f":"SUM(C8:C20)","v":0},{"$f":"B21+C21","v":0},{"$f":"SUM(E8:E20)","v":0},{"$f":"SUM(F8:F20)","v":0},0,0,0,0,0,{"$f":"SUM(E21:K21)","v":0}]
["Summe Normalstunden pro Woche für Preiskalkulation",null,null,{"$f":"B22+C22","v":0},null,null,null,null,null,null,null,{"$f":"SUM(E22:K22)","v":0}]
["Summe Stunden inkl. 50% Zuschlag für Preiskalkulation",null,null,{"$f":"B23+C23","v":0},null,null,null,null,null,null,null,0]
["Summe Stunden inkl. 100% Zuschlag für Preiskalkulation",null,null,0,null,null,null,null,null,null,null,0]
["Summe Stunden inkl. 150% Zuschlag für Preiskalkulation",null,null,0,null,null,null,null,null,null,null,0]
["Gesamtsumme Stunden für Preiskalkulation",{"$f":"SUM(B22:B25)","v":0},{"$f":"SUM(C22:C25)","v":0},0,null,null,null,null,null,null,null,{"$f":"B26+C26","v":0}]

{"sheet":"2. Stundenberechnung Sonderr. ","index":4,"n_rows":13,"n_cols":37,"rows_kept":13,"cut":false,"hidden":false,"merged":[[0,0,1,15]]}
["Stundenkalkulation Sonderreinigung (Boden)",null,null,null,null,null,null,null,null,null,null,null,null,null,null,null,null,null,null,null,null,null,null,null,null,null,null,null,null,null,null,null,null,null,null,null,1]
[null,null,null,null,null,null,null,null,null,null,null,null,null,null,null,null,null,null,null,null,null,null,null,null,null,null,null,null,null,null,null,null,null,null,null,null,2]
[null,null,"Spaltenbeschriftungen",null,null,null,null,null,null,null,null,null,null,null,null,null,null,"PVC","PVC","Linoleum","Linoleum","Kautschuk","Kautschuk","Steinboden","Steinboden","Steinboden kalkhältig","Steinboden kalkhältig","Keramische Fliesen und Platten",null,"Parkett","Parkett","Teppich",null,"Laminat","Laminat",null,3]
[null,null,"Estrich/Asphaltböden","Kautschuk","Keramische Fliesen und Platten","Laminat","Linoleum","Parkett geölt/gewachst","Parkett versiegelt","PVC","Sonstige","Steinboden","Steinboden kalkhältig","Teppich","(Leer)","Gesamtergebnis",null,"Nassgrundreinigung mit 2-maliger Einpflege",18,"Nassgrundreinigung mit 2-maliger Einpflege",12,"Nassgrundreinigung mit Einpflege",15,"Nassgrundreinigung",25,"Nassgrundreinigung",25,"Nassgrundreinigung",45,"Lösemittelgrundreinigung",45,"Shampoonieren und Extrahieren",25,"Lösemittelgrundreinigung",45,null,4]
[null,"Summe von Raum-",null,null,null,null,null,null,null,null,null,null,null,null,null,null,null,"Pflegefilmsanierung",30,"Pflegefilmsanierung",30,"Nassgrundreinigung mit Spraypolieren (Gumminoppen)",12,"Imprägnieren",40,"Imprägnieren",40,0,0,"Cleanern und Polieren",85,"Nassgrundreinigung - Sprühextrahieren",25,"Cleanern und Abpolieren",85,null,5]
[null,null,null,null,null,null,null,null,null,null,null,null,null,null,null,null,null,"Cleanern und Polieren",85,"Cleanern und Polieren",85,"Cleanern und Polieren",85,"Nassgrundreinigung inkl. Imprägnierung",15.384615384615385,"Spraykristallisation",20,null,null,"Einpflege",35,"Garnpadreinigung",40,"Lösemittelgrundreinigung inkl. Cleanern bzw. Abpolieren",29.423076923076923,null,6]
["Objekt",null,"Estrich/Asphaltböden","Kautschuk","Keramische Fliesen und Platten","Laminat","Linoleum","Parkett geölt/gewachst","Parkett versiegelt","PVC","Sonstige","Steinboden","Steinboden kalkhältig","Teppich","(Leer)","Gesamt",null,"Intensivreinigung",50,"Intensivreinigung",50,"Intensivreinigung",50,0,0,"Pulverkristallisation",15,null,null,"Pflegefilmsanierung",65,"Trockenpulverreinigung",25,0,0,null,7]
[null,"m²-Angaben",{"$f":"GETPIVOTDATA(\"Raum-\nflächen\nin m2\",$B$3,\"Bodenbelagsart\",\"Estrich/Asphaltböden\")","v":0},{"$f":"GETPIVOTDATA(\"Raum-\nflächen\nin m2\",$B$3,\"Bodenbelagsart\",\"Kautschuk\")","v":0},{"$f":"GETPIVOTDATA(\"Raum-\nflächen\nin m2\",$B$3,\"Bodenbelagsart\",\"Keramische Fliesen und Platten\")","v":0},{"$f":"GETPIVOTDATA(\"Raum-\nflächen\nin m2\",$B$3,\"Bodenbelagsart\",\"Laminat\")","v":0},{"$f":"GETPIVOTDATA(\"Raum-\nflächen\nin m2\",$B$3,\"Bodenbelagsart\",\"Linoleum\")","v":0},{"$f":"GETPIVOTDATA(\"Raum-\nflächen\nin m2\",$B$3,\"Bodenbelagsart\",\"Parkett geölt/gewachst\")","v":0},{"$f":"GETPIVOTDATA(\"Raum-\nflächen\nin m2\",$B$3,\"Bodenbelagsart\",\"Parkett versiegelt\")","v":0},{"$f":"GETPIVOTDATA(\"Raum-\nflächen\nin m2\",$B$3,\"Bodenbelagsart\",\"PVC\")","v":0},{"$f":"GETPIVOTDATA(\"Raum-\nflächen\nin m2\",$B$3,\"Bodenbelagsart\",\"Sonstige\")","v":0},{"$f":"GETPIVOTDATA(\"Raum-\nflächen\nin m2\",$B$3,\"Bodenbelagsart\",\"Steinboden\")","v":0},{"$f":"GETPIVOTDATA(\"Raum-\nflächen\nin m2\",$B$3,\"Bodenbelagsart\",\"Steinboden kalkhältig\")","v":0},{"$f":"GETPIVOTDATA(\"Raum-\nflächen\nin m2\",$B$3,\"Bodenbelagsart\",\"Teppich\")","v":0},{"$f":"GETPIVOTDATA(\"Raum-\nflächen\nin m2\",$B$3,\"Bodenbelagsart\",)","v":0},{"$f":"SUM(C8:O8)","v":0},null,0,0,0,0,0,0,null,null,"3-stufige Sanierung mit Diamantsteinpolierpads",5,null,null,"Lösemittelgrundreinigung inkl. Polieren",19.6875,"Trockenschaumreinigung",40,null,null,null,8]
["Leistungsart","mittels Dropdownfeld in der Zelle auswählen",null,null,null,null,null,null,null,null,null,null,null,null,null,null,null,null,null,null,null,null,null,null,null,"Nassgrundreinigung inkl. Imprägnierung",15.384615384615385,null,null,"Lösemittelgrundreinigung inkl. Einpflege",19.6875,0,0,null,null,null,9]
["Flächenleistung nach Ö-Norm D 2050 m² pro Stunde","wir automatisch übernommen",{"$f":"VLOOKUP(C9,X4:Y7,2,)","v":0},{"$f":"IF(ISBLANK(D8),0,VLOOKUP(D9,V4:W8,2,))","v":0},{"$f":"VLOOKUP(E9,AB4:AC5,2,)","v":0},{"$f":"VLOOKUP(F9,AH4:AI7,2,)","v":0},{"$f":"VLOOKUP(G9,T4:U8,2,)","v":0},{"$f":"VLOOKUP(H9,AD4:AE10,2,)","v":0},{"$f":"VLOOKUP(I9,AD4:AE10,2,)","v":0},{"$f":"VLOOKUP(J9,R4:S8,2,)","v":0},null,{"$f":"VLOOKUP(L9,X4:Y7,2,)","v":0},{"$f":"VLOOKUP(M9,Z4:AA13,2,)","v":0},{"$f":"VLOOKUP(N9,AF4:AG9,2,)","v":0},null,null,null,null,null,null,null,null,null,null,null,"Spraykristallisation inkl. Imprägnierung",13.333333333333334,null,null,0,0,null,null,null,null,null,10]
["Gesamtstunden",{"$f":"SUM(C11:O11)","v":0},{"$f":"IF(C10=0,0,C8/C10)","v":0},0,{"$f":"IF(E10=0,0,E8/E10)","v":0},{"$f":"IF(F10=0,0,F8/F10)","v":0},0,0,0,0,0,0,0,0,0,null,null,null,null,null,null,null,null,null,null,"Pulverkristallisation inkl. Imprägnierung",10.909090908694216,null,null,null,null,null,null,null,null,null,12]
[null,null,null,null,null,null,null,null,null,null,null,null,null,null,null,null,null,null,null,null,null,null,null,null,null,"3-stufige Sanierung mit Diamantsteinpolierpads inkl. Imprägnierung",4.4444444444444446]
[null,null,null,null,null,null,null,null,null,null,null,null,null,null,null,null,null,null,null,null,null,null,null,null,null,0,0]

{"sheet":"2. Einteilung MA Grundreinigung","index":5,"n_rows":26,"n_cols":9,"rows_kept":26,"cut":false,"hidden":false,"merged":[[0,0,0,8],[1,3,3,7]]}
["Einsatzplan Grundreinigung"]
["Wochenplanung","Einsatzstunden","Organisations- und Fahrzeiten\npro Durchführung","Einteilung der Stunden",null,null,null,null,"Std. Ges"]
[null,"Stunden"]
[]
["kalkulatorische Std",{"$f":"'2. Stundenberechnung Sonderr. '!B11","v":0},null,"Tag 1","Tag 2","Tag 3","Tag 4","Tag 5",{"$f":"SUM(B5:B5)","v":0}]
["Stundenrundung lt KV (unter Berücksichtigung des gemeinsamen Transfer der MA)",null,null,null,null,null,null,null,{"$f":"SUM(B6:B6)","v":0}]
["Mitarbeiterliste"]
[null,null,null,null,null,null,null,null,{"$f":"SUM(B8:C8)","v":0}]
[null,null,null,null,null,null,null,null,{"$f":"SUM(B9:C9)","v":0}]
[null,null,null,null,null,null,null,null,0]
[null,null,null,null,null,null,null,null,0]
[null,null,null,null,null,null,null,null,0]
[null,null,null,null,null,null,null,null,0]
[null,null,null,null,null,null,null,null,0]
[null,null,null,null,null,null,null,null,0]
[null,null,null,null,null,null,null,null,0]
[null,null,null,null,null,null,null,null,0]
[null,null,null,null,null,null,null,null,0]
[null,null,null,null,null,null,null,null,0]
[null,null,null,null,null,null,null,null,0]
["Kontrollsumme Stunden lt. Einsatzplan",{"$f":"SUM(B8:B20)","v":0},{"$f":"SUM(C8:C20)","v":0},{"$f":"SUM(D8:D20)","v":0},{"$f":"SUM(E8:E20)","v":0},0,0,0,{"$f":"SUM(D21:H21)","v":0}]
["Summe Normalstunden pro Woche für Preiskalkulation",null,null,null,null,null,null,null,{"$f":"SUM(D22:H22)","v":0}]
["Summe Stunden inkl. 50% Zuschlag für Preiskalkulation",null,null,null,null,null,null,null,0]
["Summe Stunden inkl. 100% Zuschlag für Preiskalkulation",null,null,null,null,null,null,null,0]
["Summe Stunden inkl. 150% Zuschlag für Preiskalkulation",null,null,null,null,null,null,null,0]
["Gesamtsumme Stunden für Preiskalkulation",{"$f":"SUM(B22:B25)","v":0},{"$f":"SUM(C22:C25)","v":0},null,null,null,null,null,{"$f":"B26+C26","v":0}]

{"sheet":"2. Stundenberechnung Fenster","index":6,"n_rows":11,"n_cols":13,"rows_kept":11,"cut":false,"hidden":false,"merged":[[0,0,1,7]]}
["Stundenberechnung Fensterreinigung",null,null,null,null,null,null,null,null,null,null,null,"Glasreinigung"]
[null,null,null,null,null,null,null,null,null,null,null,null,"Fensterreinigung inkl. Stock und Rahmen"]
[null,"Spaltenbeschriftungen",null,null,null,null,null,null,null,null,null,null,0]
[null,"(Leer)","Thermofenster","Verbundfenster","Kastenfenster","Glasfassade","Fixverglasung","Gesamtergebnis"]
["Summe von Summe  Fläche",0,null,null,null,null,null,0]
[]
["Objekt",null,{"$f":"C4","v":"Thermofenster"},{"$f":"D4","v":"Verbundfenster"},"Kastenfenster","Glasfassade","Fixverglasung",{"$f":"H4","v":"Gesamtergebnis"}]
[null,null,{"$f":"GETPIVOTDATA(\"Summe  Fläche\nGlas, Stock  u.\nRahmen,\n(Formel)\",$A$3,\"Fenster-\",\"Thermofenster\")","v":0},{"$f":"GETPIVOTDATA(\"Summe  Fläche\nGlas, Stock  u.\nRahmen,\n(Formel)\",$A$3,\"Fenster-\",\"Verbundfenster\")","v":0},{"$f":"GETPIVOTDATA(\"Summe  Fläche\nGlas, Stock  u.\nRahmen,\n(Formel)\",$A$3,\"Fenster-\",\"Kastenfenster\")","v":0},{"$f":"GETPIVOTDATA(\"Summe  Fläche\nGlas, Stock  u.\nRahmen,\n(Formel)\",$A$3,\"Fenster-\",\"Glasfassade\")","v":0},{"$f":"GETPIVOTDATA(\"Summe  Fläche\nGlas, Stock  u.\nRahmen,\n(Formel)\",$A$3,\"Fenster-\",\"Fixverglasung\")","v":0},{"$f":"GETPIVOTDATA(\"Summe  Fläche\nGlas, Stock  u.\nRahmen,\n(Formel)\",$A$3)","v":0}]
["Leistungsart"]
["Flächenleistung Glas und Fensterreinigung je Kategorie"]
["Gesamtstunden",{"$f":"SUM(C11:G11)","v":0},{"$f":"IF(C10=0,0,C8/C10)","v":0},0,0,0,0]

{"sheet":"2. Einteilung MA Fensterr.","index":7,"n_rows":26,"n_cols":9,"rows_kept":26,"cut":false,"hidden":false,"merged":[[0,0,0,8],[1,3,3,7]]}
["Einsatzplan Fensterreinigung"]
["Wochenplanung","Einsatzstunden","Organisations- und Fahrzeiten\npro Durchführung","Einteilung der Stunden",null,null,null,null,"Std. Ges"]
[null,"Stunden"]
[]
["kalkulatorische Std",{"$f":"'2. Stundenberechnung Fenster'!B11","v":0},null,"Tag 1","Tag 2","Tag 3","Tag 4","Tag 5",{"$f":"SUM(B5:B5)","v":0}]
["Stundenrundung lt KV (unter Berücksichtigung des gemeinsamen Transfer der MA)",null,null,null,null,null,null,null,{"$f":"SUM(B6:B6)","v":0}]
["Mitarbeiterliste"]
[null,null,null,null,null,null,null,null,{"$f":"SUM(B8:C8)","v":0}]
[null,null,null,null,null,null,null,null,{"$f":"SUM(B9:C9)","v":0}]
[null,null,null,null,null,null,null,null,0]
[null,null,null,null,null,null,null,null,0]
[null,null,null,null,null,null,null,null,0]
[null,null,null,null,null,null,null,null,0]
[null,null,null,null,null,null,null,null,0]
[null,null,null,null,null,null,null,null,0]
[null,null,null,null,null,null,null,null,0]
[null,null,null,null,null,null,null,null,0]
[null,null,null,null,null,null,null,null,0]
[null,null,null,null,null,null,null,null,0]
[null,null,null,null,null,null,null,null,0]
["Kontrollsumme Stunden lt. Einsatzplan",{"$f":"SUM(B8:B20)","v":0},{"$f":"SUM(C8:C20)","v":0},{"$f":"SUM(D8:D20)","v":0},{"$f":"SUM(E8:E20)","v":0},0,0,0,{"$f":"SUM(D21:H21)","v":0}]
["Summe Normalstunden pro Woche für Preiskalkulation",null,null,null,null,null,null,null,{"$f":"SUM(D22:H22)","v":0}]
["Summe Stunden inkl. 50% Zuschlag für Preiskalkulation",null,null,null,null,null,null,null,0]
["Summe Stunden inkl. 100% Zuschlag für Preiskalkulation",null,null,null,null,null,null,null,0]
["Summe Stunden inkl. 150% Zuschlag für Preiskalkulation",null,null,null,null,null,null,null,0]
["Gesamtsumme Stunden für Preiskalkulation",{"$f":"SUM(B22:B25)","v":0},{"$f":"SUM(C22:C25)","v":0},null,null,null,null,null,{"$f":"B26+C26","v":0}]

{"sheet":"Summenblatt","index":8,"n_rows":23,"n_cols":7,"rows_kept":23,"cut":false,"hidden":false,"merged":[[0,0,0,6]]}
["Summenblatt"]
["Unterhaltsreinigung","Anzahl Wochenstunden lt. Einsatzplan","Anzahl Monatsstunden für die UHR","Stundensatz lt. Stundensatzkalkulationstool","Monatspauschale","Anzahl Monate/Durchführung","Jahreskosten exkl. UST"]
["Summe Stunden mit Normalstundensatz ohne Zuschläge",{"$f":"'2. Einteilung Mitarbeiter UHR'!L22","v":0},{"$f":"B3*4.35","v":0},null,{"$f":"C3*D3","v":0}]
["Summe Stunden mit Stundensatz inkl. 50 % Zuschlag",{"$f":"'2. Einteilung Mitarbeiter UHR'!L23","v":0},{"$f":"B4*4.35","v":0},null,{"$f":"C4*D4","v":0}]
["Summe Stunden mit Stundensatz inkl. 100 % Zuschlag",{"$f":"'2. Einteilung Mitarbeiter UHR'!L24","v":0},0,null,0]
["Summe Stunden mit Stundensatz inkl. 150 % Zuschlag",{"$f":"'2. Einteilung Mitarbeiter UHR'!L25","v":0},0,null,0]
["Gesamtsumme",null,null,null,{"$f":"SUM(E3:E6)","v":0},null,{"$f":"E7*F7","v":0}]
["Grundreinigung",null,"Anzahl Gesamtstunden","Stundensatz lt. Stundensatzkalkulationstool","Durchführungspauschale","Anzahl Durchführungen","Jahreskosten exkl. UST"]
["Summe Stunden mit Normalstundensatz ohne Zuschläge",null,{"$f":"'2. Einteilung MA Grundreinigung'!I22","v":0},null,{"$f":"C9*D9","v":0}]
["Summe Stunden mit Stundensatz inkl. 50 % Zuschlag",null,{"$f":"'2. Einteilung MA Grundreinigung'!I23","v":0},null,{"$f":"C10*D10","v":0}]
["Summe Stunden mit Stundensatz inkl. 100 % Zuschlag",null,{"$f":"'2. Einteilung MA Grundreinigung'!I24","v":0},null,0]
["Summe Stunden mit Stundensatz inkl. 150 % Zuschlag",null,{"$f":"'2. Einteilung MA Grundreinigung'!I25","v":0},null,0]
["Gesamtsumme",null,null,null,{"$f":"SUM(E9:E12)","v":0},null,{"$f":"E13*F13","v":0}]
["Fensterreinigung",null,"Anzahl Gesamtstunden","Stundensatz lt. Stundensatzkalkulationstool","Durchführungspauschale","Anzahl Durchführungen","Jahreskosten exkl. UST"]
["Summe Stunden mit Normalstundensatz ohne Zuschläge",null,{"$f":"'2. Einteilung MA Fensterr.'!I22","v":0},null,{"$f":"C15*D15","v":0}]
["Summe Stunden mit Stundensatz inkl. 50 % Zuschlag",null,{"$f":"'2. Einteilung MA Fensterr.'!I23","v":0},null,{"$f":"C16*D16","v":0}]
["Summe Stunden mit Stundensatz inkl. 100 % Zuschlag",null,{"$f":"'2. Einteilung MA Fensterr.'!I24","v":0},null,0]
["Summe Stunden mit Stundensatz inkl. 150 % Zuschlag",null,{"$f":"'2. Einteilung MA Fensterr.'!I25","v":0},null,0]
["Gesamtsumme",null,null,null,{"$f":"SUM(E15:E18)","v":0},null,{"$f":"E19*F19","v":0}]
[]
[null,null,null,null,null,"Angebotspreis exkl. Ust",{"$f":"G7+G13+G19","v":0}]
[null,null,null,null,null,"20 % Ust.",{"$f":"G21/100*20","v":0}]
[null,null,null,null,null,"Angebotspreis inkl. Ust",{"$f":"G21+G22","v":0}]